Workbook

Sheet بيانات أولية
B1: بداية الافتتاح : | C1: 2023-01-01
A3: رقم الترتيب | B3: الاسم و اللقب | C3: الجنس | D3: المهنة | E3: العنوان | F3: الرمز
A4: 1 | B4: محمد محمد 1 | C4: ذكر | D4: حارس | E4: سطيف | F4: A
A5: 2 | B5: محمد محمد 2 | C5: أنثى | D5: بناء | E5: فسنطينى | F5: A
A6: 3 | B6: محمد محمد 3 | C6: ذكر | D6: عامل | E6: الجزاءر | F6: B
A7: 4 | B7: محمد محمد 4 | C7: أنثى | D7: تاجر | E7: باتنة | F7: C
A8: 5 | B8: محمد محمد 5 | C8: ذكر | D8: حارس | E8: سطيف | F8: E
A9: 6 | B9: محمد محمد 6 | C9: أنثى | D9: بناء | E9: فسنطينى | F9: F
A10: 7 | B10: محمد محمد 7 | C10: ذكر | D10: عامل | E10: الجزاءر | F10: G
A11: 8 | B11: محمد محمد 8 | C11: أنثى | D11: تاجر | E11: باتنة | F11: H
A12: 9 | B12: محمد محمد 9 | C12: ذكر | D12: حارس | E12: سطيف | F12: I
A13: 10 | B13: محمد محمد 10 | C13: أنثى | D13: بناء | E13: فسنطينى | F13: J
A14: 11 | B14: محمد محمد 11 | C14: ذكر | D14: عامل | E14: الجزاءر | F14: K
A15: 12 | B15: محمد محمد 12 | C15: أنثى | D15: تاجر | E15: باتنة | F15: L
A16: 13 | B16: محمد محمد 13 | C16: ذكر | D16: حارس | E16: سطيف | F16: M
A17: 14 | B17: محمد محمد 14 | C17: أنثى | D17: بناء | E17: فسنطينى | F17: N
A18: 15 | B18: محمد محمد 15 | C18: ذكر | D18: عامل | E18: الجزاءر | F18: A
A19: 16 | B19: محمد محمد 16 | C19: أنثى | D19: تاجر | E19: باتنة | F19: A
A20: 17 | B20: محمد محمد 17 | C20: ذكر | D20: حارس | E20: سطيف | F20: B
A21: 18 | B21: محمد محمد 18 | C21: أنثى | D21: بناء | E21: فسنطينى | F21: C
A22: 19 | B22: محمد محمد 19 | C22: ذكر | D22: عامل | E22: الجزاءر | F22: E
A23: 20 | B23: محمد محمد 20 | C23: أنثى | D23: تاجر | E23: باتنة | F23: F

Sheet ادخال البيانات
G2: اختيار التاريخ : | H2: 2023-01-01
A3: رقم الترتيب | B3: الاسم و اللقب | C3: الجنس | D3: المهنة | E3: العنوان | F3: الرمز | G3: نوع الغياب | H3: عدد الغياب
A4: ='بيانات أولية'!A4 -> 1 | B4: ='بيانات أولية'!B4 -> محمد محمد 1 | C4: ='بيانات أولية'!C4 -> ذكر | D4: ='بيانات أولية'!D4 -> حارس | E4: ='بيانات أولية'!E4 -> سطيف | F4: ='بيانات أولية'!F4 -> A | G4: غياب مبرر | H4: 1
A5: ='بيانات أولية'!A5 -> 2 | B5: ='بيانات أولية'!B5 -> محمد محمد 2 | C5: ='بيانات أولية'!C5 -> أنثى | D5: ='بيانات أولية'!D5 -> بناء | E5: ='بيانات أولية'!E5 -> فسنطينى | F5: ='بيانات أولية'!F5 -> A | G5: غير مبرر | H5: 2
A6: ='بيانات أولية'!A6 -> 3 | B6: ='بيانات أولية'!B6 -> محمد محمد 3 | C6: ='بيانات أولية'!C6 -> ذكر | D6: ='بيانات أولية'!D6 -> عامل | E6: ='بيانات أولية'!E6 -> الجزاءر | F6: ='بيانات أولية'!F6 -> B | G6: ض | H6: 3
A7: ='بيانات أولية'!A7 -> 4 | B7: ='بيانات أولية'!B7 -> محمد محمد 4 | C7: ='بيانات أولية'!C7 -> أنثى | D7: ='بيانات أولية'!D7 -> تاجر | E7: ='بيانات أولية'!E7 -> باتنة | F7: ='بيانات أولية'!F7 -> C | G7: غير مبرر | H7: 4
A8: ='بيانات أولية'!A8 -> 5 | B8: ='بيانات أولية'!B8 -> محمد محمد 5 | C8: ='بيانات أولية'!C8 -> ذكر | D8: ='بيانات أولية'!D8 -> حارس | E8: ='بيانات أولية'!E8 -> سطيف | F8: ='بيانات أولية'!F8 -> E | G8: ض | H8: 5
A9: ='بيانات أولية'!A9 -> 6 | B9: ='بيانات أولية'!B9 -> محمد محمد 6 | C9: ='بيانات أولية'!C9 -> أنثى | D9: ='بيانات أولية'!D9 -> بناء | E9: ='بيانات أولية'!E9 -> فسنطينى | F9: ='بيانات أولية'!F9 -> F | G9: ص | H9: 6
A10: ='بيانات أولية'!A10 -> 7 | B10: ='بيانات أولية'!B10 -> محمد محمد 7 | C10: ='بيانات أولية'!C10 -> ذكر | D10: ='بيانات أولية'!D10 -> عامل | E10: ='بيانات أولية'!E10 -> الجزاءر | F10: ='بيانات أولية'!F10 -> G | G10: ض | H10: 7
A11: ='بيانات أولية'!A11 -> 8 | B11: ='بيانات أولية'!B11 -> محمد محمد 8 | C11: ='بيانات أولية'!C11 -> أنثى | D11: ='بيانات أولية'!D11 -> تاجر | E11: ='بيانات أولية'!E11 -> باتنة | F11: ='بيانات أولية'!F11 -> H
A12: ='بيانات أولية'!A12 -> 9 | B12: ='بيانات أولية'!B12 -> محمد محمد 9 | C12: ='بيانات أولية'!C12 -> ذكر | D12: ='بيانات أولية'!D12 -> حارس | E12: ='بيانات أولية'!E12 -> سطيف | F12: ='بيانات أولية'!F12 -> I | G12: ض | H12: 8
A13: ='بيانات أولية'!A13 -> 10 | B13: ='بيانات أولية'!B13 -> محمد محمد 10 | C13: ='بيانات أولية'!C13 -> أنثى | D13: ='بيانات أولية'!D13 -> بناء | E13: ='بيانات أولية'!E13 -> فسنطينى | F13: ='بيانات أولية'!F13 -> J
A14: ='بيانات أولية'!A14 -> 11 | B14: ='بيانات أولية'!B14 -> محمد محمد 11 | C14: ='بيانات أولية'!C14 -> ذكر | D14: ='بيانات أولية'!D14 -> عامل | E14: ='بيانات أولية'!E14 -> الجزاءر | F14: ='بيانات أولية'!F14 -> K | G14: غير مبرر | H14: 9
A15: ='بيانات أولية'!A15 -> 12 | B15: ='بيانات أولية'!B15 -> محمد محمد 12 | C15: ='بيانات أولية'!C15 -> أنثى | D15: ='بيانات أولية'!D15 -> تاجر | E15: ='بيانات أولية'!E15 -> باتنة | F15: ='بيانات أولية'!F15 -> L
A16: ='بيانات أولية'!A16 -> 13 | B16: ='بيانات أولية'!B16 -> محمد محمد 13 | C16: ='بيانات أولية'!C16 -> ذكر | D16: ='بيانات أولية'!D16 -> حارس | E16: ='بيانات أولية'!E16 -> سطيف | F16: ='بيانات أولية'!F16 -> M | G16: غياب يوم | H16: 10
A17: ='بيانات أولية'!A17 -> 14 | B17: ='بيانات أولية'!B17 -> محمد محمد 14 | C17: ='بيانات أولية'!C17 -> أنثى | D17: ='بيانات أولية'!D17 -> بناء | E17: ='بيانات أولية'!E17 -> فسنطينى | F17: ='بيانات أولية'!F17 -> N
A18: ='بيانات أولية'!A18 -> 15 | B18: ='بيانات أولية'!B18 -> محمد محمد 15 | C18: ='بيانات أولية'!C18 -> ذكر | D18: ='بيانات أولية'!D18 -> عامل | E18: ='بيانات أولية'!E18 -> الجزاءر | F18: ='بيانات أولية'!F18 -> A | N18: نوع الغياب
A19: ='بيانات أولية'!A19 -> 16 | B19: ='بيانات أولية'!B19 -> محمد محمد 16 | C19: ='بيانات أولية'!C19 -> أنثى | D19: ='بيانات أولية'!D19 -> تاجر | E19: ='بيانات أولية'!E19 -> باتنة | F19: ='بيانات أولية'!F19 -> A | N19: غياب مبرر
A20: ='بيانات أولية'!A20 -> 17 | B20: ='بيانات أولية'!B20 -> محمد محمد 17 | C20: ='بيانات أولية'!C20 -> ذكر | D20: ='بيانات أولية'!D20 -> حارس | E20: ='بيانات أولية'!E20 -> سطيف | F20: ='بيانات أولية'!F20 -> B | N20: غير مبرر
A21: ='بيانات أولية'!A21 -> 18 | B21: ='بيانات أولية'!B21 -> محمد محمد 18 | C21: ='بيانات أولية'!C21 -> أنثى | D21: ='بيانات أولية'!D21 -> بناء | E21: ='بيانات أولية'!E21 -> فسنطينى | F21: ='بيانات أولية'!F21 -> C | N21: غياب يوم
A22: ='بيانات أولية'!A22 -> 19 | B22: ='بيانات أولية'!B22 -> محمد محمد 19 | C22: ='بيانات أولية'!C22 -> ذكر | D22: ='بيانات أولية'!D22 -> عامل | E22: ='بيانات أولية'!E22 -> الجزاءر | F22: ='بيانات أولية'!F22 -> E | N22: ض
A23: ='بيانات أولية'!A23 -> 20 | B23: ='بيانات أولية'!B23 -> محمد محمد 20 | C23: ='بيانات أولية'!C23 -> أنثى | D23: ='بيانات أولية'!D23 -> تاجر | E23: ='بيانات أولية'!E23 -> باتنة | F23: ='بيانات أولية'!F23 -> F | N23: ص
N24: ث
N25: ق
N26: ف

Sheet غياب مبرر
G1: الرقم | H1: 1 | I1: =H1+1 -> 2 | J1: =I1+1 -> 3 | K1: 4 | L1: 5 | M1: 6 | N1: 7 | O1: 8 | P1: 9 | Q1: 10 | R1: 11 | S1: 12 | T1: 13 | U1: 14 | V1: 15 | W1: 16 | X1: 17 | Y1: 18 | Z1: 19 | AA1: 20 | AB1: 21 | AC1: 22 | AD1: 23 | AE1: 24 | AF1: 25 | AG1: 26 | AH1: 27 | AI1: 28 | AJ1: 29 | AK1: 30 | AL1: 31 | AM1: 32 | AN1: 33 | AO1: 34 | AP1: 35 | AQ1: 36 | AR1: 37 | AS1: 38 | AT1: 39 | AU1: 40 | AV1: 41 | AW1: 42 | AX1: 43 | AY1: 44 | AZ1: 45 | BA1: 46 | BB1: 47 | BC1: 48 | BD1: 49 | BE1: 50 | BF1: 51 | BG1: 52 | BH1: 53 | BI1: 54 | BJ1: 55 | BK1: 56 | BL1: 57 | BM1: 58 | BN1: 59 | BO1: 60 | BP1: 61 | BQ1: 62 | BR1: 63 | BS1: 64 | BT1: 65 | BU1: 66 | BV1: =BU1+1 -> 67 | BW1: 68 | BX1: 69 | BY1: 70 | BZ1: 71 | CA1: 72 | CB1: 73 | CC1: 74 | CD1: 75 | CE1: 76 | CF1: 77 | CG1: 78 | CH1: 79 | CI1: 80 | CJ1: 81 | CK1: 82 | CL1: 83 | CM1: 84 | CN1: 85 | CO1: 86 | CP1: 87 | CQ1: 88 | CR1: 89 | CS1: 90 | CT1: 91 | CU1: 92 | CV1: 93 | CW1: 94 | CX1: 95 | CY1: 96 | CZ1: 97 | DA1: 98 | DB1: 99 | DC1: 100 | DD1: 101 | DE1: 102 | DF1: 103 | DG1: 104 | DH1: 105 | DI1: 106 | DJ1: 107 | DK1: 108 | DL1: 109 | DM1: 110 | DN1: 111 | DO1: 112 | DP1: 113 | DQ1: 114 | DR1: 115 | DS1: 116 | DT1: 117 | DU1: 118 | DV1: 119 | DW1: 120 | DX1: 121 | DY1: 122 | DZ1: 123 | EA1: 124 | EB1: 125 | EC1: 126 | ED1: 127 | EE1: =ED1+1 -> 128 | EF1: =EE1+1 -> 129 | EG1: 130 | EH1: 131 | EI1: 132 | EJ1: 133 | EK1: 134 | EL1: 135 | EM1: 136 | EN1: 137 | EO1: 138 | EP1: 139 | EQ1: 140 | ER1: 141 | ES1: 142 | ET1: 143 | EU1: 144 | EV1: 145 | EW1: 146 | EX1: 147 | EY1: 148 | EZ1: 149 | FA1: 150 | FB1: 151 | FC1: 152 | FD1: 153 | FE1: 154 | FF1: 155 | FG1: 156 | FH1: 157 | FI1: 158 | FJ1: 159 | FK1: 160 | FL1: 161 | FM1: 162 | FN1: 163 | FO1: 164 | FP1: 165 | FQ1: 166 | FR1: 167 | FS1: 168 | FT1: 169 | FU1: 170 | FV1: 171 | FW1: 172 | FX1: 173 | FY1: 174 | FZ1: 175 | GA1: =FY1+1 -> 175 | GB1: =GA1+1 -> 176 | GC1: 177 | GD1: 178 | GE1: 179 | GF1: 180 | GG1: 181 | GH1: 182 | GI1: 183 | GJ1: 184 | GK1: 185 | GL1: 186 | GM1: 187 | GN1: 188 | GO1: 189 | GP1: 190 | GQ1: 191 | GR1: 192 | GS1: 193 | GT1: 194 | GU1: 195 | GV1: 196 | GW1: 197 | GX1: 198 | GY1: 199 | GZ1: 200 | HA1: 201 | HB1: 202 | HC1: 203 | HD1: 204 | HE1: 205 | HF1: 206 | HG1: 207 | HH1: 208 | HI1: 209 | HJ1: 210 | HK1: 211 | HL1: 212 | HM1: 213 | HN1: 214 | HO1: 215 | HP1: 216 | HQ1: 217 | HR1: 218 | HS1: 219 | HT1: 220 | HU1: 221 | HV1: 222 | HW1: 223 | HX1: 224 | HY1: 225 | HZ1: 226 | IA1: 227 | IB1: 228 | IC1: 229 | ID1: 230 | IE1: 231 | IF1: 232 | IG1: 233 | IH1: 234 | II1: 235 | IJ1: 236 | IK1: 237 | IL1: 238 | IM1: 239 | IN1: =IM1+1 -> 240 | IO1: 241 | IP1: 242 | IQ1: 243 | IR1: 244 | IS1: 245 | IT1: 246 | IU1: 247 | IV1: 248 | IW1: 249 | IX1: 250 | IY1: 251 | IZ1: 252 | JA1: 253 | JB1: 254 | JC1: 255 | JD1: 256 | JE1: 257 | JF1: 258 | JG1: 259 | JH1: 260 | JI1: 261 | JJ1: 262 | JK1: 263 | JL1: 264 | JM1: 265 | JN1: 266 | JO1: 267 | JP1: 268 | JQ1: =JO1+1 -> 268 | JR1: =JQ1+1 -> 269 | JS1: 270 | JT1: 271 | JU1: 272 | JV1: 273 | JW1: 274 | JX1: 275 | JY1: 276 | JZ1: 277 | KA1: 278 | KB1: 279 | KC1: 280 | KD1: 281 | KE1: 282 | KF1: 283 | KG1: 284 | KH1: 285 | KI1: 286 | KJ1: 287 | KK1: 288 | KL1: 289 | KM1: 290 | KN1: 291 | KO1: 292 | KP1: 293 | KQ1: 294 | KR1: 295 | KS1: 296 | KT1: 297 | KU1: 298 | KV1: 299 | KW1: 300 | KX1: 301 | KY1: 302 | KZ1: 303 | LA1: 304 | LB1: 305 | LC1: 306 | LD1: 307 | LE1: 308 | LF1: 309 | LG1: 310 | LH1: 311 | LI1: 312 | LJ1: 313 | LK1: 314 | LL1: 315 | LM1: 316 | LN1: 317 | LO1: 318 | LP1: 319 | LQ1: 320 | LR1: 321 | LS1: 322 | LT1: 323 | LU1: =LS1+1 -> 323 | LV1: =LU1+1 -> 324 | LW1: 325 | LX1: 326 | LY1: 327 | LZ1: 328 | MA1: 329 | MB1: 330 | MC1: 331 | MD1: 332 | ME1: 333 | MF1: 334 | MG1: 335 | MH1: 336 | MI1: 337 | MJ1: 338 | MK1: 339 | ML1: 340 | MM1: 341 | MN1: 342 | MO1: 343 | MP1: 344 | MQ1: =MO1+1 -> 344 | MR1: =MQ1+1 -> 345 | MS1: 346 | MT1: 347 | MU1: 348 | MV1: 349 | MW1: 350 | MX1: 351 | MY1: 352 | MZ1: 353 | NA1: 354 | NB1: 355 | NC1: 356 | ND1: 357 | NE1: =NC1+1 -> 357 | NF1: =NE1+1 -> 358 | NG1: 359 | NH1: 360 | NI1: 361 | NJ1: 362 | NK1: =NI1+1 -> 362 | NL1: =NK1+1 -> 363 | NM1: 364 | NN1: 365
G2: اليوم | H2: =H3 -> 2023-01-01 | I2: =I3 -> 2023-01-02 | J2: =J3 -> 2023-01-03 | K2: 2023-01-04 | L2: 2023-01-05 | M2: 2023-01-06 | N2: 2023-01-07 | O2: 2023-01-08 | P2: 2023-01-09 | Q2: 2023-01-10 | R2: 2023-01-11 | S2: 2023-01-12 | T2: 2023-01-13 | U2: 2023-01-14 | V2: 2023-01-15 | W2: 2023-01-16 | X2: 2023-01-17 | Y2: 2023-01-18 | Z2: 2023-01-19 | AA2: 2023-01-20 | AB2: 2023-01-21 | AC2: 2023-01-22 | AD2: 2023-01-23 | AE2: 2023-01-24 | AF2: 2023-01-25 | AG2: 2023-01-26 | AH2: 2023-01-27 | AI2: 2023-01-28 | AJ2: 2023-01-29 | AK2: 2023-01-30 | AL2: 2023-01-31 | AM2: 2023-02-01 | AN2: 2023-02-02 | AO2: 2023-02-03 | AP2: 2023-02-04 | AQ2: 2023-02-05 | AR2: 2023-02-06 | AS2: 2023-02-07 | AT2: 2023-02-08 | AU2: 2023-02-09 | AV2: 2023-02-10 | AW2: 2023-02-11 | AX2: 2023-02-12 | AY2: 2023-02-13 | AZ2: 2023-02-14 | BA2: 2023-02-15 | BB2: 2023-02-16 | BC2: 2023-02-17 | BD2: 2023-02-18 | BE2: 2023-02-19 | BF2: 2023-02-20 | BG2: 2023-02-21 | BH2: 2023-02-22 | BI2: 2023-02-23 | BJ2: 2023-02-24 | BK2: 2023-02-25 | BL2: 2023-02-26 | BM2: 2023-02-27 | BN2: 2023-02-28 | BO2: 2023-03-01 | BP2: 2023-03-02 | BQ2: 2023-03-03 | BR2: 2023-03-04 | BS2: 2023-03-05 | BT2: 2023-03-06 | BU2: 2023-03-07 | BV2: =BV3 -> 2023-03-08 | BW2: 2023-03-09 | BX2: 2023-03-10 | BY2: 2023-03-11 | BZ2: 2023-03-12 | CA2: 2023-03-13 | CB2: 2023-03-14 | CC2: 2023-03-15 | CD2: 2023-03-16 | CE2: 2023-03-17 | CF2: 2023-03-18 | CG2: 2023-03-19 | CH2: 2023-03-20 | CI2: 2023-03-21 | CJ2: 2023-03-22 | CK2: 2023-03-23 | CL2: 2023-03-24 | CM2: 2023-03-25 | CN2: 2023-03-26 | CO2: 2023-03-27 | CP2: 2023-03-28 | CQ2: 2023-03-29 | CR2: 2023-03-30 | CS2: 2023-03-31 | CT2: 2023-04-01 | CU2: 2023-04-02 | CV2: 2023-04-03 | CW2: 2023-04-04 | CX2: 2023-04-05 | CY2: 2023-04-06 | CZ2: 2023-04-07 | DA2: 2023-04-08 | DB2: 2023-04-09 | DC2: 2023-04-10 | DD2: 2023-04-11 | DE2: 2023-04-12 | DF2: 2023-04-13 | DG2: 2023-04-14 | DH2: 2023-04-15 | DI2: 2023-04-16 | DJ2: 2023-04-17 | DK2: 2023-04-18 | DL2: 2023-04-19 | DM2: 2023-04-20 | DN2: 2023-04-21 | DO2: 2023-04-22 | DP2: 2023-04-23 | DQ2: 2023-04-24 | DR2: 2023-04-25 | DS2: 2023-04-26 | DT2: 2023-04-27 | DU2: 2023-04-28 | DV2: 2023-04-29 | DW2: 2023-04-30 | DX2: 2023-05-01 | DY2: 2023-05-02 | DZ2: 2023-05-03 | EA2: 2023-05-04 | EB2: 2023-05-05 | EC2: 2023-05-06 | ED2: 2023-05-07 | EE2: =EE3 -> 2023-05-08 | EF2: =EF3 -> 2023-05-09 | EG2: =EG3 -> 2023-05-10 | EH2: =EH3 -> 2023-05-11 | EI2: =EI3 -> 2023-05-12 | EJ2: =EJ3 -> 2023-05-13 | EK2: =EK3 -> 2023-05-14 | EL2: =EL3 -> 2023-05-15 | EM2: =EM3 -> 2023-05-16 | EN2: =EN3 -> 2023-05-17 | EO2: =EO3 -> 2023-05-18 | EP2: =EP3 -> 2023-05-19 | EQ2: =EQ3 -> 2023-05-20 | ER2: =ER3 -> 2023-05-21 | ES2: =ES3 -> 2023-05-22 | ET2: =ET3 -> 2023-05-23 | EU2: =EU3 -> 2023-05-24 | EV2: =EV3 -> 2023-05-25 | EW2: =EW3 -> 2023-05-26 | EX2: =EX3 -> 2023-05-27 | EY2: =EY3 -> 2023-05-28 | EZ2: =EZ3 -> 2023-05-29 | FA2: =FA3 -> 2023-05-30 | FB2: =FB3 -> 2023-05-31 | FC2: =FC3 -> 2023-06-01 | FD2: =FD3 -> 2023-06-02 | FE2: =FE3 -> 2023-06-03 | FF2: =FF3 -> 2023-06-04 | FG2: =FG3 -> 2023-06-05 | FH2: =FH3 -> 2023-06-06 | FI2: =FI3 -> 2023-06-07 | FJ2: =FJ3 -> 2023-06-08 | FK2: =FK3 -> 2023-06-09 | FL2: =FL3 -> 2023-06-10 | FM2: =FM3 -> 2023-06-11 | FN2: =FN3 -> 2023-06-12 | FO2: =FO3 -> 2023-06-13 | FP2: =FP3 -> 2023-06-14 | FQ2: =FQ3 -> 2023-06-15 | FR2: =FR3 -> 2023-06-16 | FS2: =FS3 -> 2023-06-17 | FT2: =FT3 -> 2023-06-18 | FU2: =FU3 -> 2023-06-19 | FV2: =FV3 -> 2023-06-20 | FW2: =FW3 -> 2023-06-21 | FX2: =FX3 -> 2023-06-22 | FY2: =FY3 -> 2023-06-23 | FZ2: =FZ3 -> 2023-06-24 | GA2: =GA3 -> 2023-06-24 | GB2: =GB3 -> 2023-06-25 | GC2: =GC3 -> 2023-06-26 | GD2: =GD3 -> 2023-06-27 | GE2: =GE3 -> 2023-06-28 | GF2: =GF3 -> 2023-06-29 | GG2: =GG3 -> 2023-06-30 | GH2: =GH3 -> 2023-07-01 | GI2: =GI3 -> 2023-07-02 | GJ2: =GJ3 -> 2023-07-03 | GK2: =GK3 -> 2023-07-04 | GL2: =GL3 -> 2023-07-05 | GM2: =GM3 -> 2023-07-06 | GN2: =GN3 -> 2023-07-07 | GO2: =GO3 -> 2023-07-08 | GP2: =GP3 -> 2023-07-09 | GQ2: =GQ3 -> 2023-07-10 | GR2: =GR3 -> 2023-07-11 | GS2: =GS3 -> 2023-07-12 | GT2: =GT3 -> 2023-07-13 | GU2: =GU3 -> 2023-07-14 | GV2: =GV3 -> 2023-07-15 | GW2: =GW3 -> 2023-07-16 | GX2: =GX3 -> 2023-07-17 | GY2: =GY3 -> 2023-07-18 | GZ2: =GZ3 -> 2023-07-19 | HA2: =HA3 -> 2023-07-20 | HB2: =HB3 -> 2023-07-21 | HC2: =HC3 -> 2023-07-22 | HD2: =HD3 -> 2023-07-23 | HE2: =HE3 -> 2023-07-24 | HF2: =HF3 -> 2023-07-25 | HG2: =HG3 -> 2023-07-26 | HH2: =HH3 -> 2023-07-27 | HI2: =HI3 -> 2023-07-28 | HJ2: =HJ3 -> 2023-07-29 | HK2: =HK3 -> 2023-07-30 | HL2: =HL3 -> 2023-07-31 | HM2: =HM3 -> 2023-08-01 | HN2: =HN3 -> 2023-08-02 | HO2: =HO3 -> 2023-08-03 | HP2: =HP3 -> 2023-08-04 | HQ2: =HQ3 -> 2023-08-05 | HR2: =HR3 -> 2023-08-06 | HS2: =HS3 -> 2023-08-07 | HT2: =HT3 -> 2023-08-08 | HU2: =HU3 -> 2023-08-09 | HV2: =HV3 -> 2023-08-10 | HW2: =HW3 -> 2023-08-11 | HX2: =HX3 -> 2023-08-12 | HY2: =HY3 -> 2023-08-13 | HZ2: =HZ3 -> 2023-08-14 | IA2: =IA3 -> 2023-08-15 | IB2: =IB3 -> 2023-08-16 | IC2: =IC3 -> 2023-08-17 | ID2: =ID3 -> 2023-08-18 | IE2: =IE3 -> 2023-08-19 | IF2: =IF3 -> 2023-08-20 | IG2: =IG3 -> 2023-08-21 | IH2: =IH3 -> 2023-08-22 | II2: =II3 -> 2023-08-23 | IJ2: =IJ3 -> 2023-08-24 | IK2: =IK3 -> 2023-08-25 | IL2: =IL3 -> 2023-08-26 | IM2: =IM3 -> 2023-08-27 | IN2: =IN3 -> 2023-08-28 | IO2: =IO3 -> 2023-08-29 | IP2: =IP3 -> 2023-08-30 | IQ2: =IQ3 -> 2023-08-31 | IR2: =IR3 -> 2023-09-01 | IS2: =IS3 -> 2023-09-02 | IT2: =IT3 -> 2023-09-03 | IU2: =IU3 -> 2023-09-04 | IV2: =IV3 -> 2023-09-05 | IW2: =IW3 -> 2023-09-06 | IX2: =IX3 -> 2023-09-07 | IY2: =IY3 -> 2023-09-08 | IZ2: =IZ3 -> 2023-09-09 | JA2: =JA3 -> 2023-09-10 | JB2: =JB3 -> 2023-09-11 | JC2: =JC3 -> 2023-09-12 | JD2: =JD3 -> 2023-09-13 | JE2: =JE3 -> 2023-09-14 | JF2: =JF3 -> 2023-09-15 | JG2: =JG3 -> 2023-09-16 | JH2: =JH3 -> 2023-09-17 | JI2: =JI3 -> 2023-09-18 | JJ2: =JJ3 -> 2023-09-19 | JK2: =JK3 -> 2023-09-20 | JL2: =JL3 -> 2023-09-21 | JM2: =JM3 -> 2023-09-22 | JN2: =JN3 -> 2023-09-23 | JO2: =JO3 -> 2023-09-24 | JP2: =JP3 -> 2023-09-25 | JQ2: =JQ3 -> 2023-09-25 | JR2: =JR3 -> 2023-09-26 | JS2: =JS3 -> 2023-09-27 | JT2: =JT3 -> 2023-09-28 | JU2: =JU3 -> 2023-09-29 | JV2: =JV3 -> 2023-09-30 | JW2: =JW3 -> 2023-10-01 | JX2: =JX3 -> 2023-10-02 | JY2: =JY3 -> 2023-10-03 | JZ2: =JZ3 -> 2023-10-04 | KA2: =KA3 -> 2023-10-05 | KB2: =KB3 -> 2023-10-06 | KC2: =KC3 -> 2023-10-07 | KD2: =KD3 -> 2023-10-08 | KE2: =KE3 -> 2023-10-09 | KF2: =KF3 -> 2023-10-10 | KG2: =KG3 -> 2023-10-11 | KH2: =KH3 -> 2023-10-12 | KI2: =KI3 -> 2023-10-13 | KJ2: =KJ3 -> 2023-10-14 | KK2: =KK3 -> 2023-10-15 | KL2: =KL3 -> 2023-10-16 | KM2: =KM3 -> 2023-10-17 | KN2: =KN3 -> 2023-10-18 | KO2: =KO3 -> 2023-10-19 | KP2: =KP3 -> 2023-10-20 | KQ2: =KQ3 -> 2023-10-21 | KR2: =KR3 -> 2023-10-22 | KS2: =KS3 -> 2023-10-23 | KT2: =KT3 -> 2023-10-24 | KU2: =KU3 -> 2023-10-25 | KV2: =KV3 -> 2023-10-26 | KW2: =KW3 -> 2023-10-27 | KX2: =KX3 -> 2023-10-28 | KY2: =KY3 -> 2023-10-29 | KZ2: =KZ3 -> 2023-10-30 | LA2: =LA3 -> 2023-10-31 | LB2: =LB3 -> 2023-11-01 | LC2: =LC3 -> 2023-11-02 | LD2: =LD3 -> 2023-11-03 | LE2: =LE3 -> 2023-11-04 | LF2: =LF3 -> 2023-11-05 | LG2: =LG3 -> 2023-11-06 | LH2: =LH3 -> 2023-11-07 | LI2: =LI3 -> 2023-11-08 | LJ2: =LJ3 -> 2023-11-09 | LK2: =LK3 -> 2023-11-10 | LL2: =LL3 -> 2023-11-11 | LM2: =LM3 -> 2023-11-12 | LN2: =LN3 -> 2023-11-13 | LO2: =LO3 -> 2023-11-14 | LP2: =LP3 -> 2023-11-15 | LQ2: =LQ3 -> 2023-11-16 | LR2: =LR3 -> 2023-11-17 | LS2: =LS3 -> 2023-11-18 | LT2: =LT3 -> 2023-11-19 | LU2: =LU3 -> 2023-11-19 | LV2: =LV3 -> 2023-11-20 | LW2: =LW3 -> 2023-11-21 | LX2: =LX3 -> 2023-11-22 | LY2: =LY3 -> 2023-11-23 | LZ2: =LZ3 -> 2023-11-24 | MA2: =MA3 -> 2023-11-25 | MB2: =MB3 -> 2023-11-26 | MC2: =MC3 -> 2023-11-27 | MD2: =MD3 -> 2023-11-28 | ME2: =ME3 -> 2023-11-29 | MF2: =MF3 -> 2023-11-30 | MG2: =MG3 -> 2023-12-01 | MH2: =MH3 -> 2023-12-02 | MI2: =MI3 -> 2023-12-03 | MJ2: =MJ3 -> 2023-12-04 | MK2: =MK3 -> 2023-12-05 | ML2: =ML3 -> 2023-12-06 | MM2: =MM3 -> 2023-12-07 | MN2: =MN3 -> 2023-12-08 | MO2: =MO3 -> 2023-12-09 | MP2: =MP3 -> 2023-12-10 | MQ2: =MQ3 -> 2023-12-10 | MR2: =MR3 -> 2023-12-11 | MS2: =MS3 -> 2023-12-12 | MT2: =MT3 -> 2023-12-13 | MU2: =MU3 -> 2023-12-14 | MV2: =MV3 -> 2023-12-15 | MW2: =MW3 -> 2023-12-16 | MX2: =MX3 -> 2023-12-17 | MY2: =MY3 -> 2023-12-18 | MZ2: =MZ3 -> 2023-12-19 | NA2: =NA3 -> 2023-12-20 | NB2: =NB3 -> 2023-12-21 | NC2: =NC3 -> 2023-12-22 | ND2: =ND3 -> 2023-12-23 | NE2: =NE3 -> 2023-12-23 | NF2: =NF3 -> 2023-12-24 | NG2: =NG3 -> 2023-12-25 | NH2: =NH3 -> 2023-12-26 | NI2: =NI3 -> 2023-12-27 | NJ2: =NJ3 -> 2023-12-28 | NK2: =NK3 -> 2023-12-28 | NL2: =NL3 -> 2023-12-29 | NM2: =NM3 -> 2023-12-30 | NN2: =NN3 -> 2023-12-31
G3: التاريخ | H3: ='بيانات أولية'!C1 -> 2023-01-01 | I3: =H3+1 -> 2023-01-02 | J3: =I3+1 -> 2023-01-03 | K3: 2023-01-04 | L3: 2023-01-05 | M3: 2023-01-06 | N3: 2023-01-07 | O3: 2023-01-08 | P3: 2023-01-09 | Q3: 2023-01-10 | R3: 2023-01-11 | S3: 2023-01-12 | T3: 2023-01-13 | U3: 2023-01-14 | V3: 2023-01-15 | W3: 2023-01-16 | X3: 2023-01-17 | Y3: 2023-01-18 | Z3: 2023-01-19 | AA3: 2023-01-20 | AB3: 2023-01-21 | AC3: 2023-01-22 | AD3: 2023-01-23 | AE3: 2023-01-24 | AF3: 2023-01-25 | AG3: 2023-01-26 | AH3: 2023-01-27 | AI3: 2023-01-28 | AJ3: 2023-01-29 | AK3: 2023-01-30 | AL3: 2023-01-31 | AM3: 2023-02-01 | AN3: 2023-02-02 | AO3: 2023-02-03 | AP3: 2023-02-04 | AQ3: 2023-02-05 | AR3: 2023-02-06 | AS3: 2023-02-07 | AT3: 2023-02-08 | AU3: 2023-02-09 | AV3: 2023-02-10 | AW3: 2023-02-11 | AX3: 2023-02-12 | AY3: 2023-02-13 | AZ3: 2023-02-14 | BA3: 2023-02-15 | BB3: 2023-02-16 | BC3: 2023-02-17 | BD3: 2023-02-18 | BE3: 2023-02-19 | BF3: 2023-02-20 | BG3: 2023-02-21 | BH3: 2023-02-22 | BI3: 2023-02-23 | BJ3: 2023-02-24 | BK3: 2023-02-25 | BL3: 2023-02-26 | BM3: 2023-02-27 | BN3: 2023-02-28 | BO3: 2023-03-01 | BP3: 2023-03-02 | BQ3: 2023-03-03 | BR3: 2023-03-04 | BS3: 2023-03-05 | BT3: 2023-03-06 | BU3: 2023-03-07 | BV3: =BU3+1 -> 2023-03-08 | BW3: 2023-03-09 | BX3: 2023-03-10 | BY3: 2023-03-11 | BZ3: 2023-03-12 | CA3: 2023-03-13 | CB3: 2023-03-14 | CC3: 2023-03-15 | CD3: 2023-03-16 | CE3: 2023-03-17 | CF3: 2023-03-18 | CG3: 2023-03-19 | CH3: 2023-03-20 | CI3: 2023-03-21 | CJ3: 2023-03-22 | CK3: 2023-03-23 | CL3: 2023-03-24 | CM3: 2023-03-25 | CN3: 2023-03-26 | CO3: 2023-03-27 | CP3: 2023-03-28 | CQ3: 2023-03-29 | CR3: 2023-03-30 | CS3: 2023-03-31 | CT3: 2023-04-01 | CU3: 2023-04-02 | CV3: 2023-04-03 | CW3: 2023-04-04 | CX3: 2023-04-05 | CY3: 2023-04-06 | CZ3: 2023-04-07 | DA3: 2023-04-08 | DB3: 2023-04-09 | DC3: 2023-04-10 | DD3: 2023-04-11 | DE3: 2023-04-12 | DF3: 2023-04-13 | DG3: 2023-04-14 | DH3: 2023-04-15 | DI3: 2023-04-16 | DJ3: 2023-04-17 | DK3: 2023-04-18 | DL3: 2023-04-19 | DM3: 2023-04-20 | DN3: 2023-04-21 | DO3: 2023-04-22 | DP3: 2023-04-23 | DQ3: 2023-04-24 | DR3: 2023-04-25 | DS3: 2023-04-26 | DT3: 2023-04-27 | DU3: 2023-04-28 | DV3: 2023-04-29 | DW3: 2023-04-30 | DX3: 2023-05-01 | DY3: 2023-05-02 | DZ3: 2023-05-03 | EA3: 2023-05-04 | EB3: 2023-05-05 | EC3: 2023-05-06 | ED3: 2023-05-07 | EE3: =ED3+1 -> 2023-05-08 | EF3: =EE3+1 -> 2023-05-09 | EG3: 2023-05-10 | EH3: 2023-05-11 | EI3: 2023-05-12 | EJ3: 2023-05-13 | EK3: 2023-05-14 | EL3: 2023-05-15 | EM3: 2023-05-16 | EN3: 2023-05-17 | EO3: 2023-05-18 | EP3: 2023-05-19 | EQ3: 2023-05-20 | ER3: 2023-05-21 | ES3: 2023-05-22 | ET3: 2023-05-23 | EU3: 2023-05-24 | EV3: 2023-05-25 | EW3: 2023-05-26 | EX3: 2023-05-27 | EY3: 2023-05-28 | EZ3: 2023-05-29 | FA3: 2023-05-30 | FB3: 2023-05-31 | FC3: 2023-06-01 | FD3: 2023-06-02 | FE3: 2023-06-03 | FF3: 2023-06-04 | FG3: 2023-06-05 | FH3: 2023-06-06 | FI3: 2023-06-07 | FJ3: 2023-06-08 | FK3: 2023-06-09 | FL3: 2023-06-10 | FM3: 2023-06-11 | FN3: 2023-06-12 | FO3: 2023-06-13 | FP3: 2023-06-14 | FQ3: 2023-06-15 | FR3: 2023-06-16 | FS3: 2023-06-17 | FT3: 2023-06-18 | FU3: 2023-06-19 | FV3: 2023-06-20 | FW3: 2023-06-21 | FX3: 2023-06-22 | FY3: 2023-06-23 | FZ3: 2023-06-24 | GA3: =FY3+1 -> 2023-06-24 | GB3: =GA3+1 -> 2023-06-25 | GC3: 2023-06-26 | GD3: 2023-06-27 | GE3: 2023-06-28 | GF3: 2023-06-29 | GG3: 2023-06-30 | GH3: 2023-07-01 | GI3: 2023-07-02 | GJ3: 2023-07-03 | GK3: 2023-07-04 | GL3: 2023-07-05 | GM3: 2023-07-06 | GN3: 2023-07-07 | GO3: 2023-07-08 | GP3: 2023-07-09 | GQ3: 2023-07-10 | GR3: 2023-07-11 | GS3: 2023-07-12 | GT3: 2023-07-13 | GU3: 2023-07-14 | GV3: 2023-07-15 | GW3: 2023-07-16 | GX3: 2023-07-17 | GY3: 2023-07-18 | GZ3: 2023-07-19 | HA3: 2023-07-20 | HB3: 2023-07-21 | HC3: 2023-07-22 | HD3: 2023-07-23 | HE3: 2023-07-24 | HF3: 2023-07-25 | HG3: 2023-07-26 | HH3: 2023-07-27 | HI3: 2023-07-28 | HJ3: 2023-07-29 | HK3: 2023-07-30 | HL3: 2023-07-31 | HM3: 2023-08-01 | HN3: 2023-08-02 | HO3: 2023-08-03 | HP3: 2023-08-04 | HQ3: 2023-08-05 | HR3: 2023-08-06 | HS3: 2023-08-07 | HT3: 2023-08-08 | HU3: 2023-08-09 | HV3: 2023-08-10 | HW3: 2023-08-11 | HX3: 2023-08-12 | HY3: 2023-08-13 | HZ3: 2023-08-14 | IA3: 2023-08-15 | IB3: 2023-08-16 | IC3: 2023-08-17 | ID3: 2023-08-18 | IE3: 2023-08-19 | IF3: 2023-08-20 | IG3: 2023-08-21 | IH3: 2023-08-22 | II3: 2023-08-23 | IJ3: 2023-08-24 | IK3: 2023-08-25 | IL3: 2023-08-26 | IM3: 2023-08-27 | IN3: =IM3+1 -> 2023-08-28 | IO3: 2023-08-29 | IP3: 2023-08-30 | IQ3: 2023-08-31 | IR3: 2023-09-01 | IS3: 2023-09-02 | IT3: 2023-09-03 | IU3: 2023-09-04 | IV3: 2023-09-05 | IW3: 2023-09-06 | IX3: 2023-09-07 | IY3: 2023-09-08 | IZ3: 2023-09-09 | JA3: 2023-09-10 | JB3: 2023-09-11 | JC3: 2023-09-12 | JD3: 2023-09-13 | JE3: 2023-09-14 | JF3: 2023-09-15 | JG3: 2023-09-16 | JH3: 2023-09-17 | JI3: 2023-09-18 | JJ3: 2023-09-19 | JK3: 2023-09-20 | JL3: 2023-09-21 | JM3: 2023-09-22 | JN3: 2023-09-23 | JO3: 2023-09-24 | JP3: 2023-09-25 | JQ3: =JO3+1 -> 2023-09-25 | JR3: =JQ3+1 -> 2023-09-26 | JS3: 2023-09-27 | JT3: 2023-09-28 | JU3: 2023-09-29 | JV3: 2023-09-30 | JW3: 2023-10-01 | JX3: 2023-10-02 | JY3: 2023-10-03 | JZ3: 2023-10-04 | KA3: 2023-10-05 | KB3: 2023-10-06 | KC3: 2023-10-07 | KD3: 2023-10-08 | KE3: 2023-10-09 | KF3: 2023-10-10 | KG3: 2023-10-11 | KH3: 2023-10-12 | KI3: 2023-10-13 | KJ3: 2023-10-14 | KK3: 2023-10-15 | KL3: 2023-10-16 | KM3: 2023-10-17 | KN3: 2023-10-18 | KO3: 2023-10-19 | KP3: 2023-10-20 | KQ3: 2023-10-21 | KR3: 2023-10-22 | KS3: 2023-10-23 | KT3: 2023-10-24 | KU3: 2023-10-25 | KV3: 2023-10-26 | KW3: 2023-10-27 | KX3: 2023-10-28 | KY3: 2023-10-29 | KZ3: 2023-10-30 | LA3: 2023-10-31 | LB3: 2023-11-01 | LC3: 2023-11-02 | LD3: 2023-11-03 | LE3: 2023-11-04 | LF3: 2023-11-05 | LG3: 2023-11-06 | LH3: 2023-11-07 | LI3: 2023-11-08 | LJ3: 2023-11-09 | LK3: 2023-11-10 | LL3: 2023-11-11 | LM3: 2023-11-12 | LN3: 2023-11-13 | LO3: 2023-11-14 | LP3: 2023-11-15 | LQ3: 2023-11-16 | LR3: 2023-11-17 | LS3: 2023-11-18 | LT3: 2023-11-19 | LU3: =LS3+1 -> 2023-11-19 | LV3: =LU3+1 -> 2023-11-20 | LW3: 2023-11-21 | LX3: 2023-11-22 | LY3: 2023-11-23 | LZ3: 2023-11-24 | MA3: 2023-11-25 | MB3: 2023-11-26 | MC3: 2023-11-27 | MD3: 2023-11-28 | ME3: 2023-11-29 | MF3: 2023-11-30 | MG3: 2023-12-01 | MH3: 2023-12-02 | MI3: 2023-12-03 | MJ3: 2023-12-04 | MK3: 2023-12-05 | ML3: 2023-12-06 | MM3: 2023-12-07 | MN3: 2023-12-08 | MO3: 2023-12-09 | MP3: 2023-12-10 | MQ3: =MO3+1 -> 2023-12-10 | MR3: =MQ3+1 -> 2023-12-11 | MS3: 2023-12-12 | MT3: 2023-12-13 | MU3: 2023-12-14 | MV3: 2023-12-15 | MW3: 2023-12-16 | MX3: 2023-12-17 | MY3: 2023-12-18 | MZ3: 2023-12-19 | NA3: 2023-12-20 | NB3: 2023-12-21 | NC3: 2023-12-22 | ND3: 2023-12-23 | NE3: =NC3+1 -> 2023-12-23 | NF3: =NE3+1 -> 2023-12-24 | NG3: 2023-12-25 | NH3: 2023-12-26 | NI3: 2023-12-27 | NJ3: 2023-12-28 | NK3: =NI3+1 -> 2023-12-28 | NL3: =NK3+1 -> 2023-12-29 | NM3: 2023-12-30 | NN3: 2023-12-31
A4: رقم الترتيب | B4: الاسم و اللقب | C4: الجنس | D4: المهنة | E4: العنوان | F4: الرمز | G4: تسلسل
A5: 1
A6: 2
A7: 3
A8: 4
A9: 5
A10: 6
A11: 7
A12: 8
A13: 9
A14: 10
A15: 11
A16: 12
A17: 13
A18: 14
A19: 15
A20: 16
A21: 17
A22: 18
A23: 19
A24: 20

Sheet غير مبرر
G1: الرقم | H1: 1 | I1: =H1+1 -> 2 | J1: =I1+1 -> 3 | K1: 4 | L1: 5 | M1: 6 | N1: 7 | O1: 8 | P1: 9 | Q1: 10 | R1: 11 | S1: 12 | T1: 13 | U1: 14 | V1: 15 | W1: 16 | X1: 17 | Y1: 18 | Z1: 19 | AA1: 20 | AB1: 21 | AC1: 22 | AD1: 23 | AE1: 24 | AF1: 25 | AG1: 26 | AH1: 27 | AI1: 28 | AJ1: 29 | AK1: 30 | AL1: 31 | AM1: 32 | AN1: 33 | AO1: 34 | AP1: 35 | AQ1: 36 | AR1: 37 | AS1: 38 | AT1: 39 | AU1: 40 | AV1: 41 | AW1: 42 | AX1: 43 | AY1: 44 | AZ1: 45 | BA1: 46 | BB1: 47 | BC1: 48 | BD1: 49 | BE1: 50 | BF1: 51 | BG1: 52 | BH1: 53 | BI1: 54 | BJ1: 55 | BK1: 56 | BL1: 57 | BM1: 58 | BN1: 59 | BO1: 60 | BP1: 61 | BQ1: 62 | BR1: 63 | BS1: 64 | BT1: 65 | BU1: 66 | BV1: =BU1+1 -> 67 | BW1: 68 | BX1: 69 | BY1: 70 | BZ1: 71 | CA1: 72 | CB1: 73 | CC1: 74 | CD1: 75 | CE1: 76 | CF1: 77 | CG1: 78 | CH1: 79 | CI1: 80 | CJ1: 81 | CK1: 82 | CL1: 83 | CM1: 84 | CN1: 85 | CO1: 86 | CP1: 87 | CQ1: 88 | CR1: 89 | CS1: 90 | CT1: 91 | CU1: 92 | CV1: 93 | CW1: 94 | CX1: 95 | CY1: 96 | CZ1: 97 | DA1: 98 | DB1: 99 | DC1: 100 | DD1: 101 | DE1: 102 | DF1: 103 | DG1: 104 | DH1: 105 | DI1: 106 | DJ1: 107 | DK1: 108 | DL1: 109 | DM1: 110 | DN1: 111 | DO1: 112 | DP1: 113 | DQ1: 114 | DR1: 115 | DS1: 116 | DT1: 117 | DU1: 118 | DV1: 119 | DW1: 120 | DX1: 121 | DY1: 122 | DZ1: 123 | EA1: 124 | EB1: 125 | EC1: 126 | ED1: 127 | EE1: =ED1+1 -> 128 | EF1: =EE1+1 -> 129 | EG1: 130 | EH1: 131 | EI1: 132 | EJ1: 133 | EK1: 134 | EL1: 135 | EM1: 136 | EN1: 137 | EO1: 138 | EP1: 139 | EQ1: 140 | ER1: 141 | ES1: 142 | ET1: 143 | EU1: 144 | EV1: 145 | EW1: 146 | EX1: 147 | EY1: 148 | EZ1: 149 | FA1: 150 | FB1: 151 | FC1: 152 | FD1: 153 | FE1: 154 | FF1: 155 | FG1: 156 | FH1: 157 | FI1: 158 | FJ1: 159 | FK1: 160 | FL1: 161 | FM1: 162 | FN1: 163 | FO1: 164 | FP1: 165 | FQ1: 166 | FR1: 167 | FS1: 168 | FT1: 169 | FU1: 170 | FV1: 171 | FW1: 172 | FX1: 173 | FY1: 174 | FZ1: 175 | GA1: =FY1+1 -> 175 | GB1: =GA1+1 -> 176 | GC1: 177 | GD1: 178 | GE1: 179 | GF1: 180 | GG1: 181 | GH1: 182 | GI1: 183 | GJ1: 184 | GK1: 185 | GL1: 186 | GM1: 187 | GN1: 188 | GO1: 189 | GP1: 190 | GQ1: 191 | GR1: 192 | GS1: 193 | GT1: 194 | GU1: 195 | GV1: 196 | GW1: 197 | GX1: 198 | GY1: 199 | GZ1: 200 | HA1: 201 | HB1: 202 | HC1: 203 | HD1: 204 | HE1: 205 | HF1: 206 | HG1: 207 | HH1: 208 | HI1: 209 | HJ1: 210 | HK1: 211 | HL1: 212 | HM1: 213 | HN1: 214 | HO1: 215 | HP1: 216 | HQ1: 217 | HR1: 218 | HS1: 219 | HT1: 220 | HU1: 221 | HV1: 222 | HW1: 223 | HX1: 224 | HY1: 225 | HZ1: 226 | IA1: 227 | IB1: 228 | IC1: 229 | ID1: 230 | IE1: 231 | IF1: 232 | IG1: 233 | IH1: 234 | II1: 235 | IJ1: 236 | IK1: 237 | IL1: 238 | IM1: 239 | IN1: =IM1+1 -> 240 | IO1: 241 | IP1: 242 | IQ1: 243 | IR1: 244 | IS1: 245 | IT1: 246 | IU1: 247 | IV1: 248 | IW1: 249 | IX1: 250 | IY1: 251 | IZ1: 252 | JA1: 253 | JB1: 254 | JC1: 255 | JD1: 256 | JE1: 257 | JF1: 258 | JG1: 259 | JH1: 260 | JI1: 261 | JJ1: 262 | JK1: 263 | JL1: 264 | JM1: 265 | JN1: 266 | JO1: 267 | JP1: 268 | JQ1: =JO1+1 -> 268 | JR1: =JQ1+1 -> 269 | JS1: 270 | JT1: 271 | JU1: 272 | JV1: 273 | JW1: 274 | JX1: 275 | JY1: 276 | JZ1: 277 | KA1: 278 | KB1: 279 | KC1: 280 | KD1: 281 | KE1: 282 | KF1: 283 | KG1: 284 | KH1: 285 | KI1: 286 | KJ1: 287 | KK1: 288 | KL1: 289 | KM1: 290 | KN1: 291 | KO1: 292 | KP1: 293 | KQ1: 294 | KR1: 295 | KS1: 296 | KT1: 297 | KU1: 298 | KV1: 299 | KW1: 300 | KX1: 301 | KY1: 302 | KZ1: 303 | LA1: 304 | LB1: 305 | LC1: 306 | LD1: 307 | LE1: 308 | LF1: 309 | LG1: 310 | LH1: 311 | LI1: 312 | LJ1: 313 | LK1: 314 | LL1: 315 | LM1: 316 | LN1: 317 | LO1: 318 | LP1: 319 | LQ1: 320 | LR1: 321 | LS1: 322 | LT1: 323 | LU1: =LS1+1 -> 323 | LV1: =LU1+1 -> 324 | LW1: 325 | LX1: 326 | LY1: 327 | LZ1: 328 | MA1: 329 | MB1: 330 | MC1: 331 | MD1: 332 | ME1: 333 | MF1: 334 | MG1: 335 | MH1: 336 | MI1: 337 | MJ1: 338 | MK1: 339 | ML1: 340 | MM1: 341 | MN1: 342 | MO1: 343 | MP1: 344 | MQ1: =MO1+1 -> 344 | MR1: =MQ1+1 -> 345 | MS1: 346 | MT1: 347 | MU1: 348 | MV1: 349 | MW1: 350 | MX1: 351 | MY1: 352 | MZ1: 353 | NA1: 354 | NB1: 355 | NC1: 356 | ND1: 357 | NE1: =NC1+1 -> 357 | NF1: =NE1+1 -> 358 | NG1: 359 | NH1: 360 | NI1: 361 | NJ1: 362 | NK1: =NI1+1 -> 362 | NL1: =NK1+1 -> 363 | NM1: 364 | NN1: 365
G2: اليوم | H2: =H3 -> 2023-01-01 | I2: =I3 -> 2023-01-02 | J2: =J3 -> 2023-01-03 | K2: 2023-01-04 | L2: 2023-01-05 | M2: 2023-01-06 | N2: 2023-01-07 | O2: 2023-01-08 | P2: 2023-01-09 | Q2: 2023-01-10 | R2: 2023-01-11 | S2: 2023-01-12 | T2: 2023-01-13 | U2: 2023-01-14 | V2: 2023-01-15 | W2: 2023-01-16 | X2: 2023-01-17 | Y2: 2023-01-18 | Z2: 2023-01-19 | AA2: 2023-01-20 | AB2: 2023-01-21 | AC2: 2023-01-22 | AD2: 2023-01-23 | AE2: 2023-01-24 | AF2: 2023-01-25 | AG2: 2023-01-26 | AH2: 2023-01-27 | AI2: 2023-01-28 | AJ2: 2023-01-29 | AK2: 2023-01-30 | AL2: 2023-01-31 | AM2: 2023-02-01 | AN2: 2023-02-02 | AO2: 2023-02-03 | AP2: 2023-02-04 | AQ2: 2023-02-05 | AR2: 2023-02-06 | AS2: 2023-02-07 | AT2: 2023-02-08 | AU2: 2023-02-09 | AV2: 2023-02-10 | AW2: 2023-02-11 | AX2: 2023-02-12 | AY2: 2023-02-13 | AZ2: 2023-02-14 | BA2: 2023-02-15 | BB2: 2023-02-16 | BC2: 2023-02-17 | BD2: 2023-02-18 | BE2: 2023-02-19 | BF2: 2023-02-20 | BG2: 2023-02-21 | BH2: 2023-02-22 | BI2: 2023-02-23 | BJ2: 2023-02-24 | BK2: 2023-02-25 | BL2: 2023-02-26 | BM2: 2023-02-27 | BN2: 2023-02-28 | BO2: 2023-03-01 | BP2: 2023-03-02 | BQ2: 2023-03-03 | BR2: 2023-03-04 | BS2: 2023-03-05 | BT2: 2023-03-06 | BU2: 2023-03-07 | BV2: =BV3 -> 2023-03-08 | BW2: 2023-03-09 | BX2: 2023-03-10 | BY2: 2023-03-11 | BZ2: 2023-03-12 | CA2: 2023-03-13 | CB2: 2023-03-14 | CC2: 2023-03-15 | CD2: 2023-03-16 | CE2: 2023-03-17 | CF2: 2023-03-18 | CG2: 2023-03-19 | CH2: 2023-03-20 | CI2: 2023-03-21 | CJ2: 2023-03-22 | CK2: 2023-03-23 | CL2: 2023-03-24 | CM2: 2023-03-25 | CN2: 2023-03-26 | CO2: 2023-03-27 | CP2: 2023-03-28 | CQ2: 2023-03-29 | CR2: 2023-03-30 | CS2: 2023-03-31 | CT2: 2023-04-01 | CU2: 2023-04-02 | CV2: 2023-04-03 | CW2: 2023-04-04 | CX2: 2023-04-05 | CY2: 2023-04-06 | CZ2: 2023-04-07 | DA2: 2023-04-08 | DB2: 2023-04-09 | DC2: 2023-04-10 | DD2: 2023-04-11 | DE2: 2023-04-12 | DF2: 2023-04-13 | DG2: 2023-04-14 | DH2: 2023-04-15 | DI2: 2023-04-16 | DJ2: 2023-04-17 | DK2: 2023-04-18 | DL2: 2023-04-19 | DM2: 2023-04-20 | DN2: 2023-04-21 | DO2: 2023-04-22 | DP2: 2023-04-23 | DQ2: 2023-04-24 | DR2: 2023-04-25 | DS2: 2023-04-26 | DT2: 2023-04-27 | DU2: 2023-04-28 | DV2: 2023-04-29 | DW2: 2023-04-30 | DX2: 2023-05-01 | DY2: 2023-05-02 | DZ2: 2023-05-03 | EA2: 2023-05-04 | EB2: 2023-05-05 | EC2: 2023-05-06 | ED2: 2023-05-07 | EE2: =EE3 -> 2023-05-08 | EF2: =EF3 -> 2023-05-09 | EG2: 2023-05-10 | EH2: 2023-05-11 | EI2: 2023-05-12 | EJ2: 2023-05-13 | EK2: 2023-05-14 | EL2: 2023-05-15 | EM2: 2023-05-16 | EN2: 2023-05-17 | EO2: 2023-05-18 | EP2: 2023-05-19 | EQ2: 2023-05-20 | ER2: 2023-05-21 | ES2: 2023-05-22 | ET2: 2023-05-23 | EU2: 2023-05-24 | EV2: 2023-05-25 | EW2: 2023-05-26 | EX2: 2023-05-27 | EY2: 2023-05-28 | EZ2: 2023-05-29 | FA2: 2023-05-30 | FB2: 2023-05-31 | FC2: 2023-06-01 | FD2: 2023-06-02 | FE2: 2023-06-03 | FF2: 2023-06-04 | FG2: 2023-06-05 | FH2: 2023-06-06 | FI2: 2023-06-07 | FJ2: 2023-06-08 | FK2: 2023-06-09 | FL2: 2023-06-10 | FM2: 2023-06-11 | FN2: 2023-06-12 | FO2: 2023-06-13 | FP2: 2023-06-14 | FQ2: 2023-06-15 | FR2: 2023-06-16 | FS2: 2023-06-17 | FT2: 2023-06-18 | FU2: 2023-06-19 | FV2: 2023-06-20 | FW2: 2023-06-21 | FX2: 2023-06-22 | FY2: 2023-06-23 | FZ2: 2023-06-24 | GA2: =GA3 -> 2023-06-24 | GB2: =GB3 -> 2023-06-25 | GC2: 2023-06-26 | GD2: 2023-06-27 | GE2: 2023-06-28 | GF2: 2023-06-29 | GG2: 2023-06-30 | GH2: 2023-07-01 | GI2: 2023-07-02 | GJ2: 2023-07-03 | GK2: 2023-07-04 | GL2: 2023-07-05 | GM2: 2023-07-06 | GN2: 2023-07-07 | GO2: 2023-07-08 | GP2: 2023-07-09 | GQ2: 2023-07-10 | GR2: 2023-07-11 | GS2: 2023-07-12 | GT2: 2023-07-13 | GU2: 2023-07-14 | GV2: 2023-07-15 | GW2: 2023-07-16 | GX2: 2023-07-17 | GY2: 2023-07-18 | GZ2: 2023-07-19 | HA2: 2023-07-20 | HB2: 2023-07-21 | HC2: 2023-07-22 | HD2: 2023-07-23 | HE2: 2023-07-24 | HF2: 2023-07-25 | HG2: 2023-07-26 | HH2: 2023-07-27 | HI2: 2023-07-28 | HJ2: 2023-07-29 | HK2: 2023-07-30 | HL2: 2023-07-31 | HM2: 2023-08-01 | HN2: 2023-08-02 | HO2: 2023-08-03 | HP2: 2023-08-04 | HQ2: 2023-08-05 | HR2: 2023-08-06 | HS2: 2023-08-07 | HT2: 2023-08-08 | HU2: 2023-08-09 | HV2: 2023-08-10 | HW2: 2023-08-11 | HX2: 2023-08-12 | HY2: 2023-08-13 | HZ2: 2023-08-14 | IA2: 2023-08-15 | IB2: 2023-08-16 | IC2: 2023-08-17 | ID2: 2023-08-18 | IE2: 2023-08-19 | IF2: 2023-08-20 | IG2: 2023-08-21 | IH2: 2023-08-22 | II2: 2023-08-23 | IJ2: 2023-08-24 | IK2: 2023-08-25 | IL2: 2023-08-26 | IM2: 2023-08-27 | IN2: =IN3 -> 2023-08-28 | IO2: 2023-08-29 | IP2: 2023-08-30 | IQ2: 2023-08-31 | IR2: 2023-09-01 | IS2: 2023-09-02 | IT2: 2023-09-03 | IU2: 2023-09-04 | IV2: 2023-09-05 | IW2: 2023-09-06 | IX2: 2023-09-07 | IY2: 2023-09-08 | IZ2: 2023-09-09 | JA2: 2023-09-10 | JB2: 2023-09-11 | JC2: 2023-09-12 | JD2: 2023-09-13 | JE2: 2023-09-14 | JF2: 2023-09-15 | JG2: 2023-09-16 | JH2: 2023-09-17 | JI2: 2023-09-18 | JJ2: 2023-09-19 | JK2: 2023-09-20 | JL2: 2023-09-21 | JM2: 2023-09-22 | JN2: 2023-09-23 | JO2: 2023-09-24 | JP2: 2023-09-25 | JQ2: =JQ3 -> 2023-09-25 | JR2: =JR3 -> 2023-09-26 | JS2: 2023-09-27 | JT2: 2023-09-28 | JU2: 2023-09-29 | JV2: 2023-09-30 | JW2: 2023-10-01 | JX2: 2023-10-02 | JY2: 2023-10-03 | JZ2: 2023-10-04 | KA2: 2023-10-05 | KB2: 2023-10-06 | KC2: 2023-10-07 | KD2: 2023-10-08 | KE2: 2023-10-09 | KF2: 2023-10-10 | KG2: 2023-10-11 | KH2: 2023-10-12 | KI2: 2023-10-13 | KJ2: 2023-10-14 | KK2: 2023-10-15 | KL2: 2023-10-16 | KM2: 2023-10-17 | KN2: 2023-10-18 | KO2: 2023-10-19 | KP2: 2023-10-20 | KQ2: 2023-10-21 | KR2: 2023-10-22 | KS2: 2023-10-23 | KT2: 2023-10-24 | KU2: 2023-10-25 | KV2: 2023-10-26 | KW2: 2023-10-27 | KX2: 2023-10-28 | KY2: 2023-10-29 | KZ2: 2023-10-30 | LA2: 2023-10-31 | LB2: 2023-11-01 | LC2: 2023-11-02 | LD2: 2023-11-03 | LE2: 2023-11-04 | LF2: 2023-11-05 | LG2: 2023-11-06 | LH2: 2023-11-07 | LI2: 2023-11-08 | LJ2: 2023-11-09 | LK2: 2023-11-10 | LL2: 2023-11-11 | LM2: 2023-11-12 | LN2: 2023-11-13 | LO2: 2023-11-14 | LP2: 2023-11-15 | LQ2: 2023-11-16 | LR2: 2023-11-17 | LS2: 2023-11-18 | LT2: 2023-11-19 | LU2: =LU3 -> 2023-11-19 | LV2: =LV3 -> 2023-11-20 | LW2: 2023-11-21 | LX2: 2023-11-22 | LY2: 2023-11-23 | LZ2: 2023-11-24 | MA2: 2023-11-25 | MB2: 2023-11-26 | MC2: 2023-11-27 | MD2: 2023-11-28 | ME2: 2023-11-29 | MF2: 2023-11-30 | MG2: 2023-12-01 | MH2: 2023-12-02 | MI2: 2023-12-03 | MJ2: 2023-12-04 | MK2: 2023-12-05 | ML2: 2023-12-06 | MM2: 2023-12-07 | MN2: 2023-12-08 | MO2: 2023-12-09 | MP2: 2023-12-10 | MQ2: =MQ3 -> 2023-12-10 | MR2: =MR3 -> 2023-12-11 | MS2: 2023-12-12 | MT2: 2023-12-13 | MU2: 2023-12-14 | MV2: 2023-12-15 | MW2: 2023-12-16 | MX2: 2023-12-17 | MY2: 2023-12-18 | MZ2: 2023-12-19 | NA2: 2023-12-20 | NB2: 2023-12-21 | NC2: 2023-12-22 | ND2: 2023-12-23 | NE2: =NE3 -> 2023-12-23 | NF2: =NF3 -> 2023-12-24 | NG2: 2023-12-25 | NH2: 2023-12-26 | NI2: 2023-12-27 | NJ2: 2023-12-28 | NK2: =NK3 -> 2023-12-28 | NL2: =NL3 -> 2023-12-29 | NM2: 2023-12-30 | NN2: 2023-12-31
G3: التاريخ | H3: ='بيانات أولية'!C1 -> 2023-01-01 | I3: =H3+1 -> 2023-01-02 | J3: =I3+1 -> 2023-01-03 | K3: 2023-01-04 | L3: 2023-01-05 | M3: 2023-01-06 | N3: 2023-01-07 | O3: 2023-01-08 | P3: 2023-01-09 | Q3: 2023-01-10 | R3: 2023-01-11 | S3: 2023-01-12 | T3: 2023-01-13 | U3: 2023-01-14 | V3: 2023-01-15 | W3: 2023-01-16 | X3: 2023-01-17 | Y3: 2023-01-18 | Z3: 2023-01-19 | AA3: 2023-01-20 | AB3: 2023-01-21 | AC3: 2023-01-22 | AD3: 2023-01-23 | AE3: 2023-01-24 | AF3: 2023-01-25 | AG3: 2023-01-26 | AH3: 2023-01-27 | AI3: 2023-01-28 | AJ3: 2023-01-29 | AK3: 2023-01-30 | AL3: 2023-01-31 | AM3: 2023-02-01 | AN3: 2023-02-02 | AO3: 2023-02-03 | AP3: 2023-02-04 | AQ3: 2023-02-05 | AR3: 2023-02-06 | AS3: 2023-02-07 | AT3: 2023-02-08 | AU3: 2023-02-09 | AV3: 2023-02-10 | AW3: 2023-02-11 | AX3: 2023-02-12 | AY3: 2023-02-13 | AZ3: 2023-02-14 | BA3: 2023-02-15 | BB3: 2023-02-16 | BC3: 2023-02-17 | BD3: 2023-02-18 | BE3: 2023-02-19 | BF3: 2023-02-20 | BG3: 2023-02-21 | BH3: 2023-02-22 | BI3: 2023-02-23 | BJ3: 2023-02-24 | BK3: 2023-02-25 | BL3: 2023-02-26 | BM3: 2023-02-27 | BN3: 2023-02-28 | BO3: 2023-03-01 | BP3: 2023-03-02 | BQ3: 2023-03-03 | BR3: 2023-03-04 | BS3: 2023-03-05 | BT3: 2023-03-06 | BU3: 2023-03-07 | BV3: =BU3+1 -> 2023-03-08 | BW3: 2023-03-09 | BX3: 2023-03-10 | BY3: 2023-03-11 | BZ3: 2023-03-12 | CA3: 2023-03-13 | CB3: 2023-03-14 | CC3: 2023-03-15 | CD3: 2023-03-16 | CE3: 2023-03-17 | CF3: 2023-03-18 | CG3: 2023-03-19 | CH3: 2023-03-20 | CI3: 2023-03-21 | CJ3: 2023-03-22 | CK3: 2023-03-23 | CL3: 2023-03-24 | CM3: 2023-03-25 | CN3: 2023-03-26 | CO3: 2023-03-27 | CP3: 2023-03-28 | CQ3: 2023-03-29 | CR3: 2023-03-30 | CS3: 2023-03-31 | CT3: 2023-04-01 | CU3: 2023-04-02 | CV3: 2023-04-03 | CW3: 2023-04-04 | CX3: 2023-04-05 | CY3: 2023-04-06 | CZ3: 2023-04-07 | DA3: 2023-04-08 | DB3: 2023-04-09 | DC3: 2023-04-10 | DD3: 2023-04-11 | DE3: 2023-04-12 | DF3: 2023-04-13 | DG3: 2023-04-14 | DH3: 2023-04-15 | DI3: 2023-04-16 | DJ3: 2023-04-17 | DK3: 2023-04-18 | DL3: 2023-04-19 | DM3: 2023-04-20 | DN3: 2023-04-21 | DO3: 2023-04-22 | DP3: 2023-04-23 | DQ3: 2023-04-24 | DR3: 2023-04-25 | DS3: 2023-04-26 | DT3: 2023-04-27 | DU3: 2023-04-28 | DV3: 2023-04-29 | DW3: 2023-04-30 | DX3: 2023-05-01 | DY3: 2023-05-02 | DZ3: 2023-05-03 | EA3: 2023-05-04 | EB3: 2023-05-05 | EC3: 2023-05-06 | ED3: 2023-05-07 | EE3: =ED3+1 -> 2023-05-08 | EF3: =EE3+1 -> 2023-05-09 | EG3: 2023-05-10 | EH3: 2023-05-11 | EI3: 2023-05-12 | EJ3: 2023-05-13 | EK3: 2023-05-14 | EL3: 2023-05-15 | EM3: 2023-05-16 | EN3: 2023-05-17 | EO3: 2023-05-18 | EP3: 2023-05-19 | EQ3: 2023-05-20 | ER3: 2023-05-21 | ES3: 2023-05-22 | ET3: 2023-05-23 | EU3: 2023-05-24 | EV3: 2023-05-25 | EW3: 2023-05-26 | EX3: 2023-05-27 | EY3: 2023-05-28 | EZ3: 2023-05-29 | FA3: 2023-05-30 | FB3: 2023-05-31 | FC3: 2023-06-01 | FD3: 2023-06-02 | FE3: 2023-06-03 | FF3: 2023-06-04 | FG3: 2023-06-05 | FH3: 2023-06-06 | FI3: 2023-06-07 | FJ3: 2023-06-08 | FK3: 2023-06-09 | FL3: 2023-06-10 | FM3: 2023-06-11 | FN3: 2023-06-12 | FO3: 2023-06-13 | FP3: 2023-06-14 | FQ3: 2023-06-15 | FR3: 2023-06-16 | FS3: 2023-06-17 | FT3: 2023-06-18 | FU3: 2023-06-19 | FV3: 2023-06-20 | FW3: 2023-06-21 | FX3: 2023-06-22 | FY3: 2023-06-23 | FZ3: 2023-06-24 | GA3: =FY3+1 -> 2023-06-24 | GB3: =GA3+1 -> 2023-06-25 | GC3: 2023-06-26 | GD3: 2023-06-27 | GE3: 2023-06-28 | GF3: 2023-06-29 | GG3: 2023-06-30 | GH3: 2023-07-01 | GI3: 2023-07-02 | GJ3: 2023-07-03 | GK3: 2023-07-04 | GL3: 2023-07-05 | GM3: 2023-07-06 | GN3: 2023-07-07 | GO3: 2023-07-08 | GP3: 2023-07-09 | GQ3: 2023-07-10 | GR3: 2023-07-11 | GS3: 2023-07-12 | GT3: 2023-07-13 | GU3: 2023-07-14 | GV3: 2023-07-15 | GW3: 2023-07-16 | GX3: 2023-07-17 | GY3: 2023-07-18 | GZ3: 2023-07-19 | HA3: 2023-07-20 | HB3: 2023-07-21 | HC3: 2023-07-22 | HD3: 2023-07-23 | HE3: 2023-07-24 | HF3: 2023-07-25 | HG3: 2023-07-26 | HH3: 2023-07-27 | HI3: 2023-07-28 | HJ3: 2023-07-29 | HK3: 2023-07-30 | HL3: 2023-07-31 | HM3: 2023-08-01 | HN3: 2023-08-02 | HO3: 2023-08-03 | HP3: 2023-08-04 | HQ3: 2023-08-05 | HR3: 2023-08-06 | HS3: 2023-08-07 | HT3: 2023-08-08 | HU3: 2023-08-09 | HV3: 2023-08-10 | HW3: 2023-08-11 | HX3: 2023-08-12 | HY3: 2023-08-13 | HZ3: 2023-08-14 | IA3: 2023-08-15 | IB3: 2023-08-16 | IC3: 2023-08-17 | ID3: 2023-08-18 | IE3: 2023-08-19 | IF3: 2023-08-20 | IG3: 2023-08-21 | IH3: 2023-08-22 | II3: 2023-08-23 | IJ3: 2023-08-24 | IK3: 2023-08-25 | IL3: 2023-08-26 | IM3: 2023-08-27 | IN3: =IM3+1 -> 2023-08-28 | IO3: 2023-08-29 | IP3: 2023-08-30 | IQ3: 2023-08-31 | IR3: 2023-09-01 | IS3: 2023-09-02 | IT3: 2023-09-03 | IU3: 2023-09-04 | IV3: 2023-09-05 | IW3: 2023-09-06 | IX3: 2023-09-07 | IY3: 2023-09-08 | IZ3: 2023-09-09 | JA3: 2023-09-10 | JB3: 2023-09-11 | JC3: 2023-09-12 | JD3: 2023-09-13 | JE3: 2023-09-14 | JF3: 2023-09-15 | JG3: 2023-09-16 | JH3: 2023-09-17 | JI3: 2023-09-18 | JJ3: 2023-09-19 | JK3: 2023-09-20 | JL3: 2023-09-21 | JM3: 2023-09-22 | JN3: 2023-09-23 | JO3: 2023-09-24 | JP3: 2023-09-25 | JQ3: =JO3+1 -> 2023-09-25 | JR3: =JQ3+1 -> 2023-09-26 | JS3: 2023-09-27 | JT3: 2023-09-28 | JU3: 2023-09-29 | JV3: 2023-09-30 | JW3: 2023-10-01 | JX3: 2023-10-02 | JY3: 2023-10-03 | JZ3: 2023-10-04 | KA3: 2023-10-05 | KB3: 2023-10-06 | KC3: 2023-10-07 | KD3: 2023-10-08 | KE3: 2023-10-09 | KF3: 2023-10-10 | KG3: 2023-10-11 | KH3: 2023-10-12 | KI3: 2023-10-13 | KJ3: 2023-10-14 | KK3: 2023-10-15 | KL3: 2023-10-16 | KM3: 2023-10-17 | KN3: 2023-10-18 | KO3: 2023-10-19 | KP3: 2023-10-20 | KQ3: 2023-10-21 | KR3: 2023-10-22 | KS3: 2023-10-23 | KT3: 2023-10-24 | KU3: 2023-10-25 | KV3: 2023-10-26 | KW3: 2023-10-27 | KX3: 2023-10-28 | KY3: 2023-10-29 | KZ3: 2023-10-30 | LA3: 2023-10-31 | LB3: 2023-11-01 | LC3: 2023-11-02 | LD3: 2023-11-03 | LE3: 2023-11-04 | LF3: 2023-11-05 | LG3: 2023-11-06 | LH3: 2023-11-07 | LI3: 2023-11-08 | LJ3: 2023-11-09 | LK3: 2023-11-10 | LL3: 2023-11-11 | LM3: 2023-11-12 | LN3: 2023-11-13 | LO3: 2023-11-14 | LP3: 2023-11-15 | LQ3: 2023-11-16 | LR3: 2023-11-17 | LS3: 2023-11-18 | LT3: 2023-11-19 | LU3: =LS3+1 -> 2023-11-19 | LV3: =LU3+1 -> 2023-11-20 | LW3: 2023-11-21 | LX3: 2023-11-22 | LY3: 2023-11-23 | LZ3: 2023-11-24 | MA3: 2023-11-25 | MB3: 2023-11-26 | MC3: 2023-11-27 | MD3: 2023-11-28 | ME3: 2023-11-29 | MF3: 2023-11-30 | MG3: 2023-12-01 | MH3: 2023-12-02 | MI3: 2023-12-03 | MJ3: 2023-12-04 | MK3: 2023-12-05 | ML3: 2023-12-06 | MM3: 2023-12-07 | MN3: 2023-12-08 | MO3: 2023-12-09 | MP3: 2023-12-10 | MQ3: =MO3+1 -> 2023-12-10 | MR3: =MQ3+1 -> 2023-12-11 | MS3: 2023-12-12 | MT3: 2023-12-13 | MU3: 2023-12-14 | MV3: 2023-12-15 | MW3: 2023-12-16 | MX3: 2023-12-17 | MY3: 2023-12-18 | MZ3: 2023-12-19 | NA3: 2023-12-20 | NB3: 2023-12-21 | NC3: 2023-12-22 | ND3: 2023-12-23 | NE3: =NC3+1 -> 2023-12-23 | NF3: =NE3+1 -> 2023-12-24 | NG3: 2023-12-25 | NH3: 2023-12-26 | NI3: 2023-12-27 | NJ3: 2023-12-28 | NK3: =NI3+1 -> 2023-12-28 | NL3: =NK3+1 -> 2023-12-29 | NM3: 2023-12-30 | NN3: 2023-12-31
A4: رقم الترتيب | B4: الاسم و اللقب | C4: الجنس | D4: المهنة | E4: العنوان | F4: الرمز | G4: تسلسل
A5: 1
A6: 2
A7: 3
A8: 4
A9: 5
A10: 6
A11: 7
A12: 8
A13: 9
A14: 10
A15: 11
A16: 12
A17: 13
A18: 14
A19: 15
A20: 16
A21: 17
A22: 18
A23: 19
A24: 20

Sheet غياب يوم
G1: الرقم | H1: 1 | I1: =H1+1 -> 2 | J1: =I1+1 -> 3 | K1: 4 | L1: 5 | M1: 6 | N1: 7 | O1: 8 | P1: 9 | Q1: 10 | R1: 11 | S1: 12 | T1: 13 | U1: 14 | V1: 15 | W1: 16 | X1: 17 | Y1: 18 | Z1: 19 | AA1: 20 | AB1: 21 | AC1: 22 | AD1: 23 | AE1: 24 | AF1: 25 | AG1: 26 | AH1: 27 | AI1: 28 | AJ1: 29 | AK1: 30 | AL1: 31 | AM1: 32 | AN1: 33 | AO1: 34 | AP1: 35 | AQ1: 36 | AR1: 37 | AS1: 38 | AT1: 39 | AU1: 40 | AV1: 41 | AW1: 42 | AX1: 43 | AY1: 44 | AZ1: 45 | BA1: 46 | BB1: 47 | BC1: 48 | BD1: 49 | BE1: 50 | BF1: 51 | BG1: 52 | BH1: 53 | BI1: 54 | BJ1: 55 | BK1: 56 | BL1: 57 | BM1: 58 | BN1: 59 | BO1: 60 | BP1: 61 | BQ1: 62 | BR1: 63 | BS1: 64 | BT1: 65 | BU1: 66 | BV1: =BU1+1 -> 67 | BW1: 68 | BX1: 69 | BY1: 70 | BZ1: 71 | CA1: 72 | CB1: 73 | CC1: 74 | CD1: 75 | CE1: 76 | CF1: 77 | CG1: 78 | CH1: 79 | CI1: 80 | CJ1: 81 | CK1: 82 | CL1: 83 | CM1: 84 | CN1: 85 | CO1: 86 | CP1: 87 | CQ1: 88 | CR1: 89 | CS1: 90 | CT1: 91 | CU1: 92 | CV1: 93 | CW1: 94 | CX1: 95 | CY1: 96 | CZ1: 97 | DA1: 98 | DB1: 99 | DC1: 100 | DD1: 101 | DE1: 102 | DF1: 103 | DG1: 104 | DH1: 105 | DI1: 106 | DJ1: 107 | DK1: 108 | DL1: 109 | DM1: 110 | DN1: 111 | DO1: 112 | DP1: 113 | DQ1: 114 | DR1: 115 | DS1: 116 | DT1: 117 | DU1: 118 | DV1: 119 | DW1: 120 | DX1: 121 | DY1: 122 | DZ1: 123 | EA1: 124 | EB1: 125 | EC1: 126 | ED1: 127 | EE1: =ED1+1 -> 128 | EF1: =EE1+1 -> 129 | EG1: 130 | EH1: 131 | EI1: 132 | EJ1: 133 | EK1: 134 | EL1: 135 | EM1: 136 | EN1: 137 | EO1: 138 | EP1: 139 | EQ1: 140 | ER1: 141 | ES1: 142 | ET1: 143 | EU1: 144 | EV1: 145 | EW1: 146 | EX1: 147 | EY1: 148 | EZ1: 149 | FA1: 150 | FB1: 151 | FC1: 152 | FD1: 153 | FE1: 154 | FF1: 155 | FG1: 156 | FH1: 157 | FI1: 158 | FJ1: 159 | FK1: 160 | FL1: 161 | FM1: 162 | FN1: 163 | FO1: 164 | FP1: 165 | FQ1: 166 | FR1: 167 | FS1: 168 | FT1: 169 | FU1: 170 | FV1: 171 | FW1: 172 | FX1: 173 | FY1: 174 | FZ1: 175 | GA1: =FY1+1 -> 175 | GB1: =GA1+1 -> 176 | GC1: 177 | GD1: 178 | GE1: 179 | GF1: 180 | GG1: 181 | GH1: 182 | GI1: 183 | GJ1: 184 | GK1: 185 | GL1: 186 | GM1: 187 | GN1: 188 | GO1: 189 | GP1: 190 | GQ1: 191 | GR1: 192 | GS1: 193 | GT1: 194 | GU1: 195 | GV1: 196 | GW1: 197 | GX1: 198 | GY1: 199 | GZ1: 200 | HA1: 201 | HB1: 202 | HC1: 203 | HD1: 204 | HE1: 205 | HF1: 206 | HG1: 207 | HH1: 208 | HI1: 209 | HJ1: 210 | HK1: 211 | HL1: 212 | HM1: 213 | HN1: 214 | HO1: 215 | HP1: 216 | HQ1: 217 | HR1: 218 | HS1: 219 | HT1: 220 | HU1: 221 | HV1: 222 | HW1: 223 | HX1: 224 | HY1: 225 | HZ1: 226 | IA1: 227 | IB1: 228 | IC1: 229 | ID1: 230 | IE1: 231 | IF1: 232 | IG1: 233 | IH1: 234 | II1: 235 | IJ1: 236 | IK1: 237 | IL1: 238 | IM1: 239 | IN1: =IM1+1 -> 240 | IO1: 241 | IP1: 242 | IQ1: 243 | IR1: 244 | IS1: 245 | IT1: 246 | IU1: 247 | IV1: 248 | IW1: 249 | IX1: 250 | IY1: 251 | IZ1: 252 | JA1: 253 | JB1: 254 | JC1: 255 | JD1: 256 | JE1: 257 | JF1: 258 | JG1: 259 | JH1: 260 | JI1: 261 | JJ1: 262 | JK1: 263 | JL1: 264 | JM1: 265 | JN1: 266 | JO1: 267 | JP1: 268 | JQ1: =JO1+1 -> 268 | JR1: =JQ1+1 -> 269 | JS1: 270 | JT1: 271 | JU1: 272 | JV1: 273 | JW1: 274 | JX1: 275 | JY1: 276 | JZ1: 277 | KA1: 278 | KB1: 279 | KC1: 280 | KD1: 281 | KE1: 282 | KF1: 283 | KG1: 284 | KH1: 285 | KI1: 286 | KJ1: 287 | KK1: 288 | KL1: 289 | KM1: 290 | KN1: 291 | KO1: 292 | KP1: 293 | KQ1: 294 | KR1: 295 | KS1: 296 | KT1: 297 | KU1: 298 | KV1: 299 | KW1: 300 | KX1: 301 | KY1: 302 | KZ1: 303 | LA1: 304 | LB1: 305 | LC1: 306 | LD1: 307 | LE1: 308 | LF1: 309 | LG1: 310 | LH1: 311 | LI1: 312 | LJ1: 313 | LK1: 314 | LL1: 315 | LM1: 316 | LN1: 317 | LO1: 318 | LP1: 319 | LQ1: 320 | LR1: 321 | LS1: 322 | LT1: 323 | LU1: =LS1+1 -> 323 | LV1: =LU1+1 -> 324 | LW1: 325 | LX1: 326 | LY1: 327 | LZ1: 328 | MA1: 329 | MB1: 330 | MC1: 331 | MD1: 332 | ME1: 333 | MF1: 334 | MG1: 335 | MH1: 336 | MI1: 337 | MJ1: 338 | MK1: 339 | ML1: 340 | MM1: 341 | MN1: 342 | MO1: 343 | MP1: 344 | MQ1: =MO1+1 -> 344 | MR1: =MQ1+1 -> 345 | MS1: 346 | MT1: 347 | MU1: 348 | MV1: 349 | MW1: 350 | MX1: 351 | MY1: 352 | MZ1: 353 | NA1: 354 | NB1: 355 | NC1: 356 | ND1: 357 | NE1: =NC1+1 -> 357 | NF1: =NE1+1 -> 358 | NG1: 359 | NH1: 360 | NI1: 361 | NJ1: 362 | NK1: =NI1+1 -> 362 | NL1: =NK1+1 -> 363 | NM1: 364 | NN1: 365
G2: اليوم | H2: =H3 -> 2023-01-01 | I2: =I3 -> 2023-01-02 | J2: =J3 -> 2023-01-03 | K2: 2023-01-04 | L2: 2023-01-05 | M2: 2023-01-06 | N2: 2023-01-07 | O2: 2023-01-08 | P2: 2023-01-09 | Q2: 2023-01-10 | R2: 2023-01-11 | S2: 2023-01-12 | T2: 2023-01-13 | U2: 2023-01-14 | V2: 2023-01-15 | W2: 2023-01-16 | X2: 2023-01-17 | Y2: 2023-01-18 | Z2: 2023-01-19 | AA2: 2023-01-20 | AB2: 2023-01-21 | AC2: 2023-01-22 | AD2: 2023-01-23 | AE2: 2023-01-24 | AF2: 2023-01-25 | AG2: 2023-01-26 | AH2: 2023-01-27 | AI2: 2023-01-28 | AJ2: 2023-01-29 | AK2: 2023-01-30 | AL2: 2023-01-31 | AM2: 2023-02-01 | AN2: 2023-02-02 | AO2: 2023-02-03 | AP2: 2023-02-04 | AQ2: 2023-02-05 | AR2: 2023-02-06 | AS2: 2023-02-07 | AT2: 2023-02-08 | AU2: 2023-02-09 | AV2: 2023-02-10 | AW2: 2023-02-11 | AX2: 2023-02-12 | AY2: 2023-02-13 | AZ2: 2023-02-14 | BA2: 2023-02-15 | BB2: 2023-02-16 | BC2: 2023-02-17 | BD2: 2023-02-18 | BE2: 2023-02-19 | BF2: 2023-02-20 | BG2: 2023-02-21 | BH2: 2023-02-22 | BI2: 2023-02-23 | BJ2: 2023-02-24 | BK2: 2023-02-25 | BL2: 2023-02-26 | BM2: 2023-02-27 | BN2: 2023-02-28 | BO2: 2023-03-01 | BP2: 2023-03-02 | BQ2: 2023-03-03 | BR2: 2023-03-04 | BS2: 2023-03-05 | BT2: 2023-03-06 | BU2: 2023-03-07 | BV2: =BV3 -> 2023-03-08 | BW2: 2023-03-09 | BX2: 2023-03-10 | BY2: 2023-03-11 | BZ2: 2023-03-12 | CA2: 2023-03-13 | CB2: 2023-03-14 | CC2: 2023-03-15 | CD2: 2023-03-16 | CE2: 2023-03-17 | CF2: 2023-03-18 | CG2: 2023-03-19 | CH2: 2023-03-20 | CI2: 2023-03-21 | CJ2: 2023-03-22 | CK2: 2023-03-23 | CL2: 2023-03-24 | CM2: 2023-03-25 | CN2: 2023-03-26 | CO2: 2023-03-27 | CP2: 2023-03-28 | CQ2: 2023-03-29 | CR2: 2023-03-30 | CS2: 2023-03-31 | CT2: 2023-04-01 | CU2: 2023-04-02 | CV2: 2023-04-03 | CW2: 2023-04-04 | CX2: 2023-04-05 | CY2: 2023-04-06 | CZ2: 2023-04-07 | DA2: 2023-04-08 | DB2: 2023-04-09 | DC2: 2023-04-10 | DD2: 2023-04-11 | DE2: 2023-04-12 | DF2: 2023-04-13 | DG2: 2023-04-14 | DH2: 2023-04-15 | DI2: 2023-04-16 | DJ2: 2023-04-17 | DK2: 2023-04-18 | DL2: 2023-04-19 | DM2: 2023-04-20 | DN2: 2023-04-21 | DO2: 2023-04-22 | DP2: 2023-04-23 | DQ2: 2023-04-24 | DR2: 2023-04-25 | DS2: 2023-04-26 | DT2: 2023-04-27 | DU2: 2023-04-28 | DV2: 2023-04-29 | DW2: 2023-04-30 | DX2: 2023-05-01 | DY2: 2023-05-02 | DZ2: 2023-05-03 | EA2: 2023-05-04 | EB2: 2023-05-05 | EC2: 2023-05-06 | ED2: 2023-05-07 | EE2: =EE3 -> 2023-05-08 | EF2: =EF3 -> 2023-05-09 | EG2: 2023-05-10 | EH2: 2023-05-11 | EI2: 2023-05-12 | EJ2: 2023-05-13 | EK2: 2023-05-14 | EL2: 2023-05-15 | EM2: 2023-05-16 | EN2: 2023-05-17 | EO2: 2023-05-18 | EP2: 2023-05-19 | EQ2: 2023-05-20 | ER2: 2023-05-21 | ES2: 2023-05-22 | ET2: 2023-05-23 | EU2: 2023-05-24 | EV2: 2023-05-25 | EW2: 2023-05-26 | EX2: 2023-05-27 | EY2: 2023-05-28 | EZ2: 2023-05-29 | FA2: 2023-05-30 | FB2: 2023-05-31 | FC2: 2023-06-01 | FD2: 2023-06-02 | FE2: 2023-06-03 | FF2: 2023-06-04 | FG2: 2023-06-05 | FH2: 2023-06-06 | FI2: 2023-06-07 | FJ2: 2023-06-08 | FK2: 2023-06-09 | FL2: 2023-06-10 | FM2: 2023-06-11 | FN2: 2023-06-12 | FO2: 2023-06-13 | FP2: 2023-06-14 | FQ2: 2023-06-15 | FR2: 2023-06-16 | FS2: 2023-06-17 | FT2: 2023-06-18 | FU2: 2023-06-19 | FV2: 2023-06-20 | FW2: 2023-06-21 | FX2: 2023-06-22 | FY2: 2023-06-23 | FZ2: 2023-06-24 | GA2: =GA3 -> 2023-06-24 | GB2: =GB3 -> 2023-06-25 | GC2: 2023-06-26 | GD2: 2023-06-27 | GE2: 2023-06-28 | GF2: 2023-06-29 | GG2: 2023-06-30 | GH2: 2023-07-01 | GI2: 2023-07-02 | GJ2: 2023-07-03 | GK2: 2023-07-04 | GL2: 2023-07-05 | GM2: 2023-07-06 | GN2: 2023-07-07 | GO2: 2023-07-08 | GP2: 2023-07-09 | GQ2: 2023-07-10 | GR2: 2023-07-11 | GS2: 2023-07-12 | GT2: 2023-07-13 | GU2: 2023-07-14 | GV2: 2023-07-15 | GW2: 2023-07-16 | GX2: 2023-07-17 | GY2: 2023-07-18 | GZ2: 2023-07-19 | HA2: 2023-07-20 | HB2: 2023-07-21 | HC2: 2023-07-22 | HD2: 2023-07-23 | HE2: 2023-07-24 | HF2: 2023-07-25 | HG2: 2023-07-26 | HH2: 2023-07-27 | HI2: 2023-07-28 | HJ2: 2023-07-29 | HK2: 2023-07-30 | HL2: 2023-07-31 | HM2: 2023-08-01 | HN2: 2023-08-02 | HO2: 2023-08-03 | HP2: 2023-08-04 | HQ2: 2023-08-05 | HR2: 2023-08-06 | HS2: 2023-08-07 | HT2: 2023-08-08 | HU2: 2023-08-09 | HV2: 2023-08-10 | HW2: 2023-08-11 | HX2: 2023-08-12 | HY2: 2023-08-13 | HZ2: 2023-08-14 | IA2: 2023-08-15 | IB2: 2023-08-16 | IC2: 2023-08-17 | ID2: 2023-08-18 | IE2: 2023-08-19 | IF2: 2023-08-20 | IG2: 2023-08-21 | IH2: 2023-08-22 | II2: 2023-08-23 | IJ2: 2023-08-24 | IK2: 2023-08-25 | IL2: 2023-08-26 | IM2: 2023-08-27 | IN2: =IN3 -> 2023-08-28 | IO2: 2023-08-29 | IP2: 2023-08-30 | IQ2: 2023-08-31 | IR2: 2023-09-01 | IS2: 2023-09-02 | IT2: 2023-09-03 | IU2: 2023-09-04 | IV2: 2023-09-05 | IW2: 2023-09-06 | IX2: 2023-09-07 | IY2: 2023-09-08 | IZ2: 2023-09-09 | JA2: 2023-09-10 | JB2: 2023-09-11 | JC2: 2023-09-12 | JD2: 2023-09-13 | JE2: 2023-09-14 | JF2: 2023-09-15 | JG2: 2023-09-16 | JH2: 2023-09-17 | JI2: 2023-09-18 | JJ2: 2023-09-19 | JK2: 2023-09-20 | JL2: 2023-09-21 | JM2: 2023-09-22 | JN2: 2023-09-23 | JO2: 2023-09-24 | JP2: 2023-09-25 | JQ2: =JQ3 -> 2023-09-25 | JR2: =JR3 -> 2023-09-26 | JS2: 2023-09-27 | JT2: 2023-09-28 | JU2: 2023-09-29 | JV2: 2023-09-30 | JW2: 2023-10-01 | JX2: 2023-10-02 | JY2: 2023-10-03 | JZ2: 2023-10-04 | KA2: 2023-10-05 | KB2: 2023-10-06 | KC2: 2023-10-07 | KD2: 2023-10-08 | KE2: 2023-10-09 | KF2: 2023-10-10 | KG2: 2023-10-11 | KH2: 2023-10-12 | KI2: 2023-10-13 | KJ2: 2023-10-14 | KK2: 2023-10-15 | KL2: 2023-10-16 | KM2: 2023-10-17 | KN2: 2023-10-18 | KO2: 2023-10-19 | KP2: 2023-10-20 | KQ2: 2023-10-21 | KR2: 2023-10-22 | KS2: 2023-10-23 | KT2: 2023-10-24 | KU2: 2023-10-25 | KV2: 2023-10-26 | KW2: 2023-10-27 | KX2: 2023-10-28 | KY2: 2023-10-29 | KZ2: 2023-10-30 | LA2: 2023-10-31 | LB2: 2023-11-01 | LC2: 2023-11-02 | LD2: 2023-11-03 | LE2: 2023-11-04 | LF2: 2023-11-05 | LG2: 2023-11-06 | LH2: 2023-11-07 | LI2: 2023-11-08 | LJ2: 2023-11-09 | LK2: 2023-11-10 | LL2: 2023-11-11 | LM2: 2023-11-12 | LN2: 2023-11-13 | LO2: 2023-11-14 | LP2: 2023-11-15 | LQ2: 2023-11-16 | LR2: 2023-11-17 | LS2: 2023-11-18 | LT2: 2023-11-19 | LU2: =LU3 -> 2023-11-19 | LV2: =LV3 -> 2023-11-20 | LW2: 2023-11-21 | LX2: 2023-11-22 | LY2: 2023-11-23 | LZ2: 2023-11-24 | MA2: 2023-11-25 | MB2: 2023-11-26 | MC2: 2023-11-27 | MD2: 2023-11-28 | ME2: 2023-11-29 | MF2: 2023-11-30 | MG2: 2023-12-01 | MH2: 2023-12-02 | MI2: 2023-12-03 | MJ2: 2023-12-04 | MK2: 2023-12-05 | ML2: 2023-12-06 | MM2: 2023-12-07 | MN2: 2023-12-08 | MO2: 2023-12-09 | MP2: 2023-12-10 | MQ2: =MQ3 -> 2023-12-10 | MR2: =MR3 -> 2023-12-11 | MS2: 2023-12-12 | MT2: 2023-12-13 | MU2: 2023-12-14 | MV2: 2023-12-15 | MW2: 2023-12-16 | MX2: 2023-12-17 | MY2: 2023-12-18 | MZ2: 2023-12-19 | NA2: 2023-12-20 | NB2: 2023-12-21 | NC2: 2023-12-22 | ND2: 2023-12-23 | NE2: =NE3 -> 2023-12-23 | NF2: =NF3 -> 2023-12-24 | NG2: 2023-12-25 | NH2: 2023-12-26 | NI2: 2023-12-27 | NJ2: 2023-12-28 | NK2: =NK3 -> 2023-12-28 | NL2: =NL3 -> 2023-12-29 | NM2: 2023-12-30 | NN2: 2023-12-31
G3: التاريخ | H3: ='بيانات أولية'!C1 -> 2023-01-01 | I3: =H3+1 -> 2023-01-02 | J3: =I3+1 -> 2023-01-03 | K3: 2023-01-04 | L3: 2023-01-05 | M3: 2023-01-06 | N3: 2023-01-07 | O3: 2023-01-08 | P3: 2023-01-09 | Q3: 2023-01-10 | R3: 2023-01-11 | S3: 2023-01-12 | T3: 2023-01-13 | U3: 2023-01-14 | V3: 2023-01-15 | W3: 2023-01-16 | X3: 2023-01-17 | Y3: 2023-01-18 | Z3: 2023-01-19 | AA3: 2023-01-20 | AB3: 2023-01-21 | AC3: 2023-01-22 | AD3: 2023-01-23 | AE3: 2023-01-24 | AF3: 2023-01-25 | AG3: 2023-01-26 | AH3: 2023-01-27 | AI3: 2023-01-28 | AJ3: 2023-01-29 | AK3: 2023-01-30 | AL3: 2023-01-31 | AM3: 2023-02-01 | AN3: 2023-02-02 | AO3: 2023-02-03 | AP3: 2023-02-04 | AQ3: 2023-02-05 | AR3: 2023-02-06 | AS3: 2023-02-07 | AT3: 2023-02-08 | AU3: 2023-02-09 | AV3: 2023-02-10 | AW3: 2023-02-11 | AX3: 2023-02-12 | AY3: 2023-02-13 | AZ3: 2023-02-14 | BA3: 2023-02-15 | BB3: 2023-02-16 | BC3: 2023-02-17 | BD3: 2023-02-18 | BE3: 2023-02-19 | BF3: 2023-02-20 | BG3: 2023-02-21 | BH3: 2023-02-22 | BI3: 2023-02-23 | BJ3: 2023-02-24 | BK3: 2023-02-25 | BL3: 2023-02-26 | BM3: 2023-02-27 | BN3: 2023-02-28 | BO3: 2023-03-01 | BP3: 2023-03-02 | BQ3: 2023-03-03 | BR3: 2023-03-04 | BS3: 2023-03-05 | BT3: 2023-03-06 | BU3: 2023-03-07 | BV3: =BU3+1 -> 2023-03-08 | BW3: 2023-03-09 | BX3: 2023-03-10 | BY3: 2023-03-11 | BZ3: 2023-03-12 | CA3: 2023-03-13 | CB3: 2023-03-14 | CC3: 2023-03-15 | CD3: 2023-03-16 | CE3: 2023-03-17 | CF3: 2023-03-18 | CG3: 2023-03-19 | CH3: 2023-03-20 | CI3: 2023-03-21 | CJ3: 2023-03-22 | CK3: 2023-03-23 | CL3: 2023-03-24 | CM3: 2023-03-25 | CN3: 2023-03-26 | CO3: 2023-03-27 | CP3: 2023-03-28 | CQ3: 2023-03-29 | CR3: 2023-03-30 | CS3: 2023-03-31 | CT3: 2023-04-01 | CU3: 2023-04-02 | CV3: 2023-04-03 | CW3: 2023-04-04 | CX3: 2023-04-05 | CY3: 2023-04-06 | CZ3: 2023-04-07 | DA3: 2023-04-08 | DB3: 2023-04-09 | DC3: 2023-04-10 | DD3: 2023-04-11 | DE3: 2023-04-12 | DF3: 2023-04-13 | DG3: 2023-04-14 | DH3: 2023-04-15 | DI3: 2023-04-16 | DJ3: 2023-04-17 | DK3: 2023-04-18 | DL3: 2023-04-19 | DM3: 2023-04-20 | DN3: 2023-04-21 | DO3: 2023-04-22 | DP3: 2023-04-23 | DQ3: 2023-04-24 | DR3: 2023-04-25 | DS3: 2023-04-26 | DT3: 2023-04-27 | DU3: 2023-04-28 | DV3: 2023-04-29 | DW3: 2023-04-30 | DX3: 2023-05-01 | DY3: 2023-05-02 | DZ3: 2023-05-03 | EA3: 2023-05-04 | EB3: 2023-05-05 | EC3: 2023-05-06 | ED3: 2023-05-07 | EE3: =ED3+1 -> 2023-05-08 | EF3: =EE3+1 -> 2023-05-09 | EG3: 2023-05-10 | EH3: 2023-05-11 | EI3: 2023-05-12 | EJ3: 2023-05-13 | EK3: 2023-05-14 | EL3: 2023-05-15 | EM3: 2023-05-16 | EN3: 2023-05-17 | EO3: 2023-05-18 | EP3: 2023-05-19 | EQ3: 2023-05-20 | ER3: 2023-05-21 | ES3: 2023-05-22 | ET3: 2023-05-23 | EU3: 2023-05-24 | EV3: 2023-05-25 | EW3: 2023-05-26 | EX3: 2023-05-27 | EY3: 2023-05-28 | EZ3: 2023-05-29 | FA3: 2023-05-30 | FB3: 2023-05-31 | FC3: 2023-06-01 | FD3: 2023-06-02 | FE3: 2023-06-03 | FF3: 2023-06-04 | FG3: 2023-06-05 | FH3: 2023-06-06 | FI3: 2023-06-07 | FJ3: 2023-06-08 | FK3: 2023-06-09 | FL3: 2023-06-10 | FM3: 2023-06-11 | FN3: 2023-06-12 | FO3: 2023-06-13 | FP3: 2023-06-14 | FQ3: 2023-06-15 | FR3: 2023-06-16 | FS3: 2023-06-17 | FT3: 2023-06-18 | FU3: 2023-06-19 | FV3: 2023-06-20 | FW3: 2023-06-21 | FX3: 2023-06-22 | FY3: 2023-06-23 | FZ3: 2023-06-24 | GA3: =FY3+1 -> 2023-06-24 | GB3: =GA3+1 -> 2023-06-25 | GC3: 2023-06-26 | GD3: 2023-06-27 | GE3: 2023-06-28 | GF3: 2023-06-29 | GG3: 2023-06-30 | GH3: 2023-07-01 | GI3: 2023-07-02 | GJ3: 2023-07-03 | GK3: 2023-07-04 | GL3: 2023-07-05 | GM3: 2023-07-06 | GN3: 2023-07-07 | GO3: 2023-07-08 | GP3: 2023-07-09 | GQ3: 2023-07-10 | GR3: 2023-07-11 | GS3: 2023-07-12 | GT3: 2023-07-13 | GU3: 2023-07-14 | GV3: 2023-07-15 | GW3: 2023-07-16 | GX3: 2023-07-17 | GY3: 2023-07-18 | GZ3: 2023-07-19 | HA3: 2023-07-20 | HB3: 2023-07-21 | HC3: 2023-07-22 | HD3: 2023-07-23 | HE3: 2023-07-24 | HF3: 2023-07-25 | HG3: 2023-07-26 | HH3: 2023-07-27 | HI3: 2023-07-28 | HJ3: 2023-07-29 | HK3: 2023-07-30 | HL3: 2023-07-31 | HM3: 2023-08-01 | HN3: 2023-08-02 | HO3: 2023-08-03 | HP3: 2023-08-04 | HQ3: 2023-08-05 | HR3: 2023-08-06 | HS3: 2023-08-07 | HT3: 2023-08-08 | HU3: 2023-08-09 | HV3: 2023-08-10 | HW3: 2023-08-11 | HX3: 2023-08-12 | HY3: 2023-08-13 | HZ3: 2023-08-14 | IA3: 2023-08-15 | IB3: 2023-08-16 | IC3: 2023-08-17 | ID3: 2023-08-18 | IE3: 2023-08-19 | IF3: 2023-08-20 | IG3: 2023-08-21 | IH3: 2023-08-22 | II3: 2023-08-23 | IJ3: 2023-08-24 | IK3: 2023-08-25 | IL3: 2023-08-26 | IM3: 2023-08-27 | IN3: =IM3+1 -> 2023-08-28 | IO3: 2023-08-29 | IP3: 2023-08-30 | IQ3: 2023-08-31 | IR3: 2023-09-01 | IS3: 2023-09-02 | IT3: 2023-09-03 | IU3: 2023-09-04 | IV3: 2023-09-05 | IW3: 2023-09-06 | IX3: 2023-09-07 | IY3: 2023-09-08 | IZ3: 2023-09-09 | JA3: 2023-09-10 | JB3: 2023-09-11 | JC3: 2023-09-12 | JD3: 2023-09-13 | JE3: 2023-09-14 | JF3: 2023-09-15 | JG3: 2023-09-16 | JH3: 2023-09-17 | JI3: 2023-09-18 | JJ3: 2023-09-19 | JK3: 2023-09-20 | JL3: 2023-09-21 | JM3: 2023-09-22 | JN3: 2023-09-23 | JO3: 2023-09-24 | JP3: 2023-09-25 | JQ3: =JO3+1 -> 2023-09-25 | JR3: =JQ3+1 -> 2023-09-26 | JS3: 2023-09-27 | JT3: 2023-09-28 | JU3: 2023-09-29 | JV3: 2023-09-30 | JW3: 2023-10-01 | JX3: 2023-10-02 | JY3: 2023-10-03 | JZ3: 2023-10-04 | KA3: 2023-10-05 | KB3: 2023-10-06 | KC3: 2023-10-07 | KD3: 2023-10-08 | KE3: 2023-10-09 | KF3: 2023-10-10 | KG3: 2023-10-11 | KH3: 2023-10-12 | KI3: 2023-10-13 | KJ3: 2023-10-14 | KK3: 2023-10-15 | KL3: 2023-10-16 | KM3: 2023-10-17 | KN3: 2023-10-18 | KO3: 2023-10-19 | KP3: 2023-10-20 | KQ3: 2023-10-21 | KR3: 2023-10-22 | KS3: 2023-10-23 | KT3: 2023-10-24 | KU3: 2023-10-25 | KV3: 2023-10-26 | KW3: 2023-10-27 | KX3: 2023-10-28 | KY3: 2023-10-29 | KZ3: 2023-10-30 | LA3: 2023-10-31 | LB3: 2023-11-01 | LC3: 2023-11-02 | LD3: 2023-11-03 | LE3: 2023-11-04 | LF3: 2023-11-05 | LG3: 2023-11-06 | LH3: 2023-11-07 | LI3: 2023-11-08 | LJ3: 2023-11-09 | LK3: 2023-11-10 | LL3: 2023-11-11 | LM3: 2023-11-12 | LN3: 2023-11-13 | LO3: 2023-11-14 | LP3: 2023-11-15 | LQ3: 2023-11-16 | LR3: 2023-11-17 | LS3: 2023-11-18 | LT3: 2023-11-19 | LU3: =LS3+1 -> 2023-11-19 | LV3: =LU3+1 -> 2023-11-20 | LW3: 2023-11-21 | LX3: 2023-11-22 | LY3: 2023-11-23 | LZ3: 2023-11-24 | MA3: 2023-11-25 | MB3: 2023-11-26 | MC3: 2023-11-27 | MD3: 2023-11-28 | ME3: 2023-11-29 | MF3: 2023-11-30 | MG3: 2023-12-01 | MH3: 2023-12-02 | MI3: 2023-12-03 | MJ3: 2023-12-04 | MK3: 2023-12-05 | ML3: 2023-12-06 | MM3: 2023-12-07 | MN3: 2023-12-08 | MO3: 2023-12-09 | MP3: 2023-12-10 | MQ3: =MO3+1 -> 2023-12-10 | MR3: =MQ3+1 -> 2023-12-11 | MS3: 2023-12-12 | MT3: 2023-12-13 | MU3: 2023-12-14 | MV3: 2023-12-15 | MW3: 2023-12-16 | MX3: 2023-12-17 | MY3: 2023-12-18 | MZ3: 2023-12-19 | NA3: 2023-12-20 | NB3: 2023-12-21 | NC3: 2023-12-22 | ND3: 2023-12-23 | NE3: =NC3+1 -> 2023-12-23 | NF3: =NE3+1 -> 2023-12-24 | NG3: 2023-12-25 | NH3: 2023-12-26 | NI3: 2023-12-27 | NJ3: 2023-12-28 | NK3: =NI3+1 -> 2023-12-28 | NL3: =NK3+1 -> 2023-12-29 | NM3: 2023-12-30 | NN3: 2023-12-31
A4: رقم الترتيب | B4: الاسم و اللقب | C4: الجنس | D4: المهنة | E4: العنوان | F4: الرمز | G4: تسلسل
A5: 1
A6: 2
A7: 3
A8: 4
A9: 5
A10: 6
A11: 7
A12: 8
A13: 9
A14: 10
A15: 11
A16: 12
A17: 13
A18: 14
A19: 15
A20: 16
A21: 17
A22: 18
A23: 19
A24: 20

Sheet ض
G1: الرقم | H1: 1 | I1: =H1+1 -> 2 | J1: =I1+1 -> 3 | K1: 4 | L1: 5 | M1: 6 | N1: 7 | O1: 8 | P1: 9 | Q1: 10 | R1: 11 | S1: 12 | T1: 13 | U1: 14 | V1: 15 | W1: 16 | X1: 17 | Y1: 18 | Z1: 19 | AA1: 20 | AB1: 21 | AC1: 22 | AD1: 23 | AE1: 24 | AF1: 25 | AG1: 26 | AH1: 27 | AI1: 28 | AJ1: 29 | AK1: 30 | AL1: 31 | AM1: 32 | AN1: 33 | AO1: 34 | AP1: 35 | AQ1: 36 | AR1: 37 | AS1: 38 | AT1: 39 | AU1: 40 | AV1: 41 | AW1: 42 | AX1: 43 | AY1: 44 | AZ1: 45 | BA1: 46 | BB1: 47 | BC1: 48 | BD1: 49 | BE1: 50 | BF1: 51 | BG1: 52 | BH1: 53 | BI1: 54 | BJ1: 55 | BK1: 56 | BL1: 57 | BM1: 58 | BN1: 59 | BO1: 60 | BP1: 61 | BQ1: 62 | BR1: 63 | BS1: 64 | BT1: 65 | BU1: 66 | BV1: =BU1+1 -> 67 | BW1: 68 | BX1: 69 | BY1: 70 | BZ1: 71 | CA1: 72 | CB1: 73 | CC1: 74 | CD1: 75 | CE1: 76 | CF1: 77 | CG1: 78 | CH1: 79 | CI1: 80 | CJ1: 81 | CK1: 82 | CL1: 83 | CM1: 84 | CN1: 85 | CO1: 86 | CP1: 87 | CQ1: 88 | CR1: 89 | CS1: 90 | CT1: 91 | CU1: 92 | CV1: 93 | CW1: 94 | CX1: 95 | CY1: 96 | CZ1: 97 | DA1: 98 | DB1: 99 | DC1: 100 | DD1: 101 | DE1: 102 | DF1: 103 | DG1: 104 | DH1: 105 | DI1: 106 | DJ1: 107 | DK1: 108 | DL1: 109 | DM1: 110 | DN1: 111 | DO1: 112 | DP1: 113 | DQ1: 114 | DR1: 115 | DS1: 116 | DT1: 117 | DU1: 118 | DV1: 119 | DW1: 120 | DX1: 121 | DY1: 122 | DZ1: 123 | EA1: 124 | EB1: 125 | EC1: 126 | ED1: 127 | EE1: =ED1+1 -> 128 | EF1: =EE1+1 -> 129 | EG1: 130 | EH1: 131 | EI1: 132 | EJ1: 133 | EK1: 134 | EL1: 135 | EM1: 136 | EN1: 137 | EO1: 138 | EP1: 139 | EQ1: 140 | ER1: 141 | ES1: 142 | ET1: 143 | EU1: 144 | EV1: 145 | EW1: 146 | EX1: 147 | EY1: 148 | EZ1: 149 | FA1: 150 | FB1: 151 | FC1: 152 | FD1: 153 | FE1: 154 | FF1: 155 | FG1: 156 | FH1: 157 | FI1: 158 | FJ1: 159 | FK1: 160 | FL1: 161 | FM1: 162 | FN1: 163 | FO1: 164 | FP1: 165 | FQ1: 166 | FR1: 167 | FS1: 168 | FT1: 169 | FU1: 170 | FV1: 171 | FW1: 172 | FX1: 173 | FY1: 174 | FZ1: 175 | GA1: =FY1+1 -> 175 | GB1: =GA1+1 -> 176 | GC1: 177 | GD1: 178 | GE1: 179 | GF1: 180 | GG1: 181 | GH1: 182 | GI1: 183 | GJ1: 184 | GK1: 185 | GL1: 186 | GM1: 187 | GN1: 188 | GO1: 189 | GP1: 190 | GQ1: 191 | GR1: 192 | GS1: 193 | GT1: 194 | GU1: 195 | GV1: 196 | GW1: 197 | GX1: 198 | GY1: 199 | GZ1: 200 | HA1: 201 | HB1: 202 | HC1: 203 | HD1: 204 | HE1: 205 | HF1: 206 | HG1: 207 | HH1: 208 | HI1: 209 | HJ1: 210 | HK1: 211 | HL1: 212 | HM1: 213 | HN1: 214 | HO1: 215 | HP1: 216 | HQ1: 217 | HR1: 218 | HS1: 219 | HT1: 220 | HU1: 221 | HV1: 222 | HW1: 223 | HX1: 224 | HY1: 225 | HZ1: 226 | IA1: 227 | IB1: 228 | IC1: 229 | ID1: 230 | IE1: 231 | IF1: 232 | IG1: 233 | IH1: 234 | II1: 235 | IJ1: 236 | IK1: 237 | IL1: 238 | IM1: 239 | IN1: =IM1+1 -> 240 | IO1: 241 | IP1: 242 | IQ1: 243 | IR1: 244 | IS1: 245 | IT1: 246 | IU1: 247 | IV1: 248 | IW1: 249 | IX1: 250 | IY1: 251 | IZ1: 252 | JA1: 253 | JB1: 254 | JC1: 255 | JD1: 256 | JE1: 257 | JF1: 258 | JG1: 259 | JH1: 260 | JI1: 261 | JJ1: 262 | JK1: 263 | JL1: 264 | JM1: 265 | JN1: 266 | JO1: 267 | JP1: 268 | JQ1: =JO1+1 -> 268 | JR1: =JQ1+1 -> 269 | JS1: 270 | JT1: 271 | JU1: 272 | JV1: 273 | JW1: 274 | JX1: 275 | JY1: 276 | JZ1: 277 | KA1: 278 | KB1: 279 | KC1: 280 | KD1: 281 | KE1: 282 | KF1: 283 | KG1: 284 | KH1: 285 | KI1: 286 | KJ1: 287 | KK1: 288 | KL1: 289 | KM1: 290 | KN1: 291 | KO1: 292 | KP1: 293 | KQ1: 294 | KR1: 295 | KS1: 296 | KT1: 297 | KU1: 298 | KV1: 299 | KW1: 300 | KX1: 301 | KY1: 302 | KZ1: 303 | LA1: 304 | LB1: 305 | LC1: 306 | LD1: 307 | LE1: 308 | LF1: 309 | LG1: 310 | LH1: 311 | LI1: 312 | LJ1: 313 | LK1: 314 | LL1: 315 | LM1: 316 | LN1: 317 | LO1: 318 | LP1: 319 | LQ1: 320 | LR1: 321 | LS1: 322 | LT1: 323 | LU1: =LS1+1 -> 323 | LV1: =LU1+1 -> 324 | LW1: 325 | LX1: 326 | LY1: 327 | LZ1: 328 | MA1: 329 | MB1: 330 | MC1: 331 | MD1: 332 | ME1: 333 | MF1: 334 | MG1: 335 | MH1: 336 | MI1: 337 | MJ1: 338 | MK1: 339 | ML1: 340 | MM1: 341 | MN1: 342 | MO1: 343 | MP1: 344 | MQ1: =MO1+1 -> 344 | MR1: =MQ1+1 -> 345 | MS1: 346 | MT1: 347 | MU1: 348 | MV1: 349 | MW1: 350 | MX1: 351 | MY1: 352 | MZ1: 353 | NA1: 354 | NB1: 355 | NC1: 356 | ND1: 357 | NE1: =NC1+1 -> 357 | NF1: =NE1+1 -> 358 | NG1: 359 | NH1: 360 | NI1: 361 | NJ1: 362 | NK1: =NI1+1 -> 362 | NL1: =NK1+1 -> 363 | NM1: 364 | NN1: 365
G2: اليوم | H2: =H3 -> 2023-01-01 | I2: =I3 -> 2023-01-02 | J2: =J3 -> 2023-01-03 | K2: 2023-01-04 | L2: 2023-01-05 | M2: 2023-01-06 | N2: 2023-01-07 | O2: 2023-01-08 | P2: 2023-01-09 | Q2: 2023-01-10 | R2: 2023-01-11 | S2: 2023-01-12 | T2: 2023-01-13 | U2: 2023-01-14 | V2: 2023-01-15 | W2: 2023-01-16 | X2: 2023-01-17 | Y2: 2023-01-18 | Z2: 2023-01-19 | AA2: 2023-01-20 | AB2: 2023-01-21 | AC2: 2023-01-22 | AD2: 2023-01-23 | AE2: 2023-01-24 | AF2: 2023-01-25 | AG2: 2023-01-26 | AH2: 2023-01-27 | AI2: 2023-01-28 | AJ2: 2023-01-29 | AK2: 2023-01-30 | AL2: 2023-01-31 | AM2: 2023-02-01 | AN2: 2023-02-02 | AO2: 2023-02-03 | AP2: 2023-02-04 | AQ2: 2023-02-05 | AR2: 2023-02-06 | AS2: 2023-02-07 | AT2: 2023-02-08 | AU2: 2023-02-09 | AV2: 2023-02-10 | AW2: 2023-02-11 | AX2: 2023-02-12 | AY2: 2023-02-13 | AZ2: 2023-02-14 | BA2: 2023-02-15 | BB2: 2023-02-16 | BC2: 2023-02-17 | BD2: 2023-02-18 | BE2: 2023-02-19 | BF2: 2023-02-20 | BG2: 2023-02-21 | BH2: 2023-02-22 | BI2: 2023-02-23 | BJ2: 2023-02-24 | BK2: 2023-02-25 | BL2: 2023-02-26 | BM2: 2023-02-27 | BN2: 2023-02-28 | BO2: 2023-03-01 | BP2: 2023-03-02 | BQ2: 2023-03-03 | BR2: 2023-03-04 | BS2: 2023-03-05 | BT2: 2023-03-06 | BU2: 2023-03-07 | BV2: =BV3 -> 2023-03-08 | BW2: 2023-03-09 | BX2: 2023-03-10 | BY2: 2023-03-11 | BZ2: 2023-03-12 | CA2: 2023-03-13 | CB2: 2023-03-14 | CC2: 2023-03-15 | CD2: 2023-03-16 | CE2: 2023-03-17 | CF2: 2023-03-18 | CG2: 2023-03-19 | CH2: 2023-03-20 | CI2: 2023-03-21 | CJ2: 2023-03-22 | CK2: 2023-03-23 | CL2: 2023-03-24 | CM2: 2023-03-25 | CN2: 2023-03-26 | CO2: 2023-03-27 | CP2: 2023-03-28 | CQ2: 2023-03-29 | CR2: 2023-03-30 | CS2: 2023-03-31 | CT2: 2023-04-01 | CU2: 2023-04-02 | CV2: 2023-04-03 | CW2: 2023-04-04 | CX2: 2023-04-05 | CY2: 2023-04-06 | CZ2: 2023-04-07 | DA2: 2023-04-08 | DB2: 2023-04-09 | DC2: 2023-04-10 | DD2: 2023-04-11 | DE2: 2023-04-12 | DF2: 2023-04-13 | DG2: 2023-04-14 | DH2: 2023-04-15 | DI2: 2023-04-16 | DJ2: 2023-04-17 | DK2: 2023-04-18 | DL2: 2023-04-19 | DM2: 2023-04-20 | DN2: 2023-04-21 | DO2: 2023-04-22 | DP2: 2023-04-23 | DQ2: 2023-04-24 | DR2: 2023-04-25 | DS2: 2023-04-26 | DT2: 2023-04-27 | DU2: 2023-04-28 | DV2: 2023-04-29 | DW2: 2023-04-30 | DX2: 2023-05-01 | DY2: 2023-05-02 | DZ2: 2023-05-03 | EA2: 2023-05-04 | EB2: 2023-05-05 | EC2: 2023-05-06 | ED2: 2023-05-07 | EE2: =EE3 -> 2023-05-08 | EF2: =EF3 -> 2023-05-09 | EG2: 2023-05-10 | EH2: 2023-05-11 | EI2: 2023-05-12 | EJ2: 2023-05-13 | EK2: 2023-05-14 | EL2: 2023-05-15 | EM2: 2023-05-16 | EN2: 2023-05-17 | EO2: 2023-05-18 | EP2: 2023-05-19 | EQ2: 2023-05-20 | ER2: 2023-05-21 | ES2: 2023-05-22 | ET2: 2023-05-23 | EU2: 2023-05-24 | EV2: 2023-05-25 | EW2: 2023-05-26 | EX2: 2023-05-27 | EY2: 2023-05-28 | EZ2: 2023-05-29 | FA2: 2023-05-30 | FB2: 2023-05-31 | FC2: 2023-06-01 | FD2: 2023-06-02 | FE2: 2023-06-03 | FF2: 2023-06-04 | FG2: 2023-06-05 | FH2: 2023-06-06 | FI2: 2023-06-07 | FJ2: 2023-06-08 | FK2: 2023-06-09 | FL2: 2023-06-10 | FM2: 2023-06-11 | FN2: 2023-06-12 | FO2: 2023-06-13 | FP2: 2023-06-14 | FQ2: 2023-06-15 | FR2: 2023-06-16 | FS2: 2023-06-17 | FT2: 2023-06-18 | FU2: 2023-06-19 | FV2: 2023-06-20 | FW2: 2023-06-21 | FX2: 2023-06-22 | FY2: 2023-06-23 | FZ2: 2023-06-24 | GA2: =GA3 -> 2023-06-24 | GB2: =GB3 -> 2023-06-25 | GC2: 2023-06-26 | GD2: 2023-06-27 | GE2: 2023-06-28 | GF2: 2023-06-29 | GG2: 2023-06-30 | GH2: 2023-07-01 | GI2: 2023-07-02 | GJ2: 2023-07-03 | GK2: 2023-07-04 | GL2: 2023-07-05 | GM2: 2023-07-06 | GN2: 2023-07-07 | GO2: 2023-07-08 | GP2: 2023-07-09 | GQ2: 2023-07-10 | GR2: 2023-07-11 | GS2: 2023-07-12 | GT2: 2023-07-13 | GU2: 2023-07-14 | GV2: 2023-07-15 | GW2: 2023-07-16 | GX2: 2023-07-17 | GY2: 2023-07-18 | GZ2: 2023-07-19 | HA2: 2023-07-20 | HB2: 2023-07-21 | HC2: 2023-07-22 | HD2: 2023-07-23 | HE2: 2023-07-24 | HF2: 2023-07-25 | HG2: 2023-07-26 | HH2: 2023-07-27 | HI2: 2023-07-28 | HJ2: 2023-07-29 | HK2: 2023-07-30 | HL2: 2023-07-31 | HM2: 2023-08-01 | HN2: 2023-08-02 | HO2: 2023-08-03 | HP2: 2023-08-04 | HQ2: 2023-08-05 | HR2: 2023-08-06 | HS2: 2023-08-07 | HT2: 2023-08-08 | HU2: 2023-08-09 | HV2: 2023-08-10 | HW2: 2023-08-11 | HX2: 2023-08-12 | HY2: 2023-08-13 | HZ2: 2023-08-14 | IA2: 2023-08-15 | IB2: 2023-08-16 | IC2: 2023-08-17 | ID2: 2023-08-18 | IE2: 2023-08-19 | IF2: 2023-08-20 | IG2: 2023-08-21 | IH2: 2023-08-22 | II2: 2023-08-23 | IJ2: 2023-08-24 | IK2: 2023-08-25 | IL2: 2023-08-26 | IM2: 2023-08-27 | IN2: =IN3 -> 2023-08-28 | IO2: 2023-08-29 | IP2: 2023-08-30 | IQ2: 2023-08-31 | IR2: 2023-09-01 | IS2: 2023-09-02 | IT2: 2023-09-03 | IU2: 2023-09-04 | IV2: 2023-09-05 | IW2: 2023-09-06 | IX2: 2023-09-07 | IY2: 2023-09-08 | IZ2: 2023-09-09 | JA2: 2023-09-10 | JB2: 2023-09-11 | JC2: 2023-09-12 | JD2: 2023-09-13 | JE2: 2023-09-14 | JF2: 2023-09-15 | JG2: 2023-09-16 | JH2: 2023-09-17 | JI2: 2023-09-18 | JJ2: 2023-09-19 | JK2: 2023-09-20 | JL2: 2023-09-21 | JM2: 2023-09-22 | JN2: 2023-09-23 | JO2: 2023-09-24 | JP2: 2023-09-25 | JQ2: =JQ3 -> 2023-09-25 | JR2: =JR3 -> 2023-09-26 | JS2: 2023-09-27 | JT2: 2023-09-28 | JU2: 2023-09-29 | JV2: 2023-09-30 | JW2: 2023-10-01 | JX2: 2023-10-02 | JY2: 2023-10-03 | JZ2: 2023-10-04 | KA2: 2023-10-05 | KB2: 2023-10-06 | KC2: 2023-10-07 | KD2: 2023-10-08 | KE2: 2023-10-09 | KF2: 2023-10-10 | KG2: 2023-10-11 | KH2: 2023-10-12 | KI2: 2023-10-13 | KJ2: 2023-10-14 | KK2: 2023-10-15 | KL2: 2023-10-16 | KM2: 2023-10-17 | KN2: 2023-10-18 | KO2: 2023-10-19 | KP2: 2023-10-20 | KQ2: 2023-10-21 | KR2: 2023-10-22 | KS2: 2023-10-23 | KT2: 2023-10-24 | KU2: 2023-10-25 | KV2: 2023-10-26 | KW2: 2023-10-27 | KX2: 2023-10-28 | KY2: 2023-10-29 | KZ2: 2023-10-30 | LA2: 2023-10-31 | LB2: 2023-11-01 | LC2: 2023-11-02 | LD2: 2023-11-03 | LE2: 2023-11-04 | LF2: 2023-11-05 | LG2: 2023-11-06 | LH2: 2023-11-07 | LI2: 2023-11-08 | LJ2: 2023-11-09 | LK2: 2023-11-10 | LL2: 2023-11-11 | LM2: 2023-11-12 | LN2: 2023-11-13 | LO2: 2023-11-14 | LP2: 2023-11-15 | LQ2: 2023-11-16 | LR2: 2023-11-17 | LS2: 2023-11-18 | LT2: 2023-11-19 | LU2: =LU3 -> 2023-11-19 | LV2: =LV3 -> 2023-11-20 | LW2: 2023-11-21 | LX2: 2023-11-22 | LY2: 2023-11-23 | LZ2: 2023-11-24 | MA2: 2023-11-25 | MB2: 2023-11-26 | MC2: 2023-11-27 | MD2: 2023-11-28 | ME2: 2023-11-29 | MF2: 2023-11-30 | MG2: 2023-12-01 | MH2: 2023-12-02 | MI2: 2023-12-03 | MJ2: 2023-12-04 | MK2: 2023-12-05 | ML2: 2023-12-06 | MM2: 2023-12-07 | MN2: 2023-12-08 | MO2: 2023-12-09 | MP2: 2023-12-10 | MQ2: =MQ3 -> 2023-12-10 | MR2: =MR3 -> 2023-12-11 | MS2: 2023-12-12 | MT2: 2023-12-13 | MU2: 2023-12-14 | MV2: 2023-12-15 | MW2: 2023-12-16 | MX2: 2023-12-17 | MY2: 2023-12-18 | MZ2: 2023-12-19 | NA2: 2023-12-20 | NB2: 2023-12-21 | NC2: 2023-12-22 | ND2: 2023-12-23 | NE2: =NE3 -> 2023-12-23 | NF2: =NF3 -> 2023-12-24 | NG2: 2023-12-25 | NH2: 2023-12-26 | NI2: 2023-12-27 | NJ2: 2023-12-28 | NK2: =NK3 -> 2023-12-28 | NL2: =NL3 -> 2023-12-29 | NM2: 2023-12-30 | NN2: 2023-12-31
G3: التاريخ | H3: ='بيانات أولية'!C1 -> 2023-01-01 | I3: =H3+1 -> 2023-01-02 | J3: =I3+1 -> 2023-01-03 | K3: 2023-01-04 | L3: 2023-01-05 | M3: 2023-01-06 | N3: 2023-01-07 | O3: 2023-01-08 | P3: 2023-01-09 | Q3: 2023-01-10 | R3: 2023-01-11 | S3: 2023-01-12 | T3: 2023-01-13 | U3: 2023-01-14 | V3: 2023-01-15 | W3: 2023-01-16 | X3: 2023-01-17 | Y3: 2023-01-18 | Z3: 2023-01-19 | AA3: 2023-01-20 | AB3: 2023-01-21 | AC3: 2023-01-22 | AD3: 2023-01-23 | AE3: 2023-01-24 | AF3: 2023-01-25 | AG3: 2023-01-26 | AH3: 2023-01-27 | AI3: 2023-01-28 | AJ3: 2023-01-29 | AK3: 2023-01-30 | AL3: 2023-01-31 | AM3: 2023-02-01 | AN3: 2023-02-02 | AO3: 2023-02-03 | AP3: 2023-02-04 | AQ3: 2023-02-05 | AR3: 2023-02-06 | AS3: 2023-02-07 | AT3: 2023-02-08 | AU3: 2023-02-09 | AV3: 2023-02-10 | AW3: 2023-02-11 | AX3: 2023-02-12 | AY3: 2023-02-13 | AZ3: 2023-02-14 | BA3: 2023-02-15 | BB3: 2023-02-16 | BC3: 2023-02-17 | BD3: 2023-02-18 | BE3: 2023-02-19 | BF3: 2023-02-20 | BG3: 2023-02-21 | BH3: 2023-02-22 | BI3: 2023-02-23 | BJ3: 2023-02-24 | BK3: 2023-02-25 | BL3: 2023-02-26 | BM3: 2023-02-27 | BN3: 2023-02-28 | BO3: 2023-03-01 | BP3: 2023-03-02 | BQ3: 2023-03-03 | BR3: 2023-03-04 | BS3: 2023-03-05 | BT3: 2023-03-06 | BU3: 2023-03-07 | BV3: =BU3+1 -> 2023-03-08 | BW3: 2023-03-09 | BX3: 2023-03-10 | BY3: 2023-03-11 | BZ3: 2023-03-12 | CA3: 2023-03-13 | CB3: 2023-03-14 | CC3: 2023-03-15 | CD3: 2023-03-16 | CE3: 2023-03-17 | CF3: 2023-03-18 | CG3: 2023-03-19 | CH3: 2023-03-20 | CI3: 2023-03-21 | CJ3: 2023-03-22 | CK3: 2023-03-23 | CL3: 2023-03-24 | CM3: 2023-03-25 | CN3: 2023-03-26 | CO3: 2023-03-27 | CP3: 2023-03-28 | CQ3: 2023-03-29 | CR3: 2023-03-30 | CS3: 2023-03-31 | CT3: 2023-04-01 | CU3: 2023-04-02 | CV3: 2023-04-03 | CW3: 2023-04-04 | CX3: 2023-04-05 | CY3: 2023-04-06 | CZ3: 2023-04-07 | DA3: 2023-04-08 | DB3: 2023-04-09 | DC3: 2023-04-10 | DD3: 2023-04-11 | DE3: 2023-04-12 | DF3: 2023-04-13 | DG3: 2023-04-14 | DH3: 2023-04-15 | DI3: 2023-04-16 | DJ3: 2023-04-17 | DK3: 2023-04-18 | DL3: 2023-04-19 | DM3: 2023-04-20 | DN3: 2023-04-21 | DO3: 2023-04-22 | DP3: 2023-04-23 | DQ3: 2023-04-24 | DR3: 2023-04-25 | DS3: 2023-04-26 | DT3: 2023-04-27 | DU3: 2023-04-28 | DV3: 2023-04-29 | DW3: 2023-04-30 | DX3: 2023-05-01 | DY3: 2023-05-02 | DZ3: 2023-05-03 | EA3: 2023-05-04 | EB3: 2023-05-05 | EC3: 2023-05-06 | ED3: 2023-05-07 | EE3: =ED3+1 -> 2023-05-08 | EF3: =EE3+1 -> 2023-05-09 | EG3: 2023-05-10 | EH3: 2023-05-11 | EI3: 2023-05-12 | EJ3: 2023-05-13 | EK3: 2023-05-14 | EL3: 2023-05-15 | EM3: 2023-05-16 | EN3: 2023-05-17 | EO3: 2023-05-18 | EP3: 2023-05-19 | EQ3: 2023-05-20 | ER3: 2023-05-21 | ES3: 2023-05-22 | ET3: 2023-05-23 | EU3: 2023-05-24 | EV3: 2023-05-25 | EW3: 2023-05-26 | EX3: 2023-05-27 | EY3: 2023-05-28 | EZ3: 2023-05-29 | FA3: 2023-05-30 | FB3: 2023-05-31 | FC3: 2023-06-01 | FD3: 2023-06-02 | FE3: 2023-06-03 | FF3: 2023-06-04 | FG3: 2023-06-05 | FH3: 2023-06-06 | FI3: 2023-06-07 | FJ3: 2023-06-08 | FK3: 2023-06-09 | FL3: 2023-06-10 | FM3: 2023-06-11 | FN3: 2023-06-12 | FO3: 2023-06-13 | FP3: 2023-06-14 | FQ3: 2023-06-15 | FR3: 2023-06-16 | FS3: 2023-06-17 | FT3: 2023-06-18 | FU3: 2023-06-19 | FV3: 2023-06-20 | FW3: 2023-06-21 | FX3: 2023-06-22 | FY3: 2023-06-23 | FZ3: 2023-06-24 | GA3: =FY3+1 -> 2023-06-24 | GB3: =GA3+1 -> 2023-06-25 | GC3: 2023-06-26 | GD3: 2023-06-27 | GE3: 2023-06-28 | GF3: 2023-06-29 | GG3: 2023-06-30 | GH3: 2023-07-01 | GI3: 2023-07-02 | GJ3: 2023-07-03 | GK3: 2023-07-04 | GL3: 2023-07-05 | GM3: 2023-07-06 | GN3: 2023-07-07 | GO3: 2023-07-08 | GP3: 2023-07-09 | GQ3: 2023-07-10 | GR3: 2023-07-11 | GS3: 2023-07-12 | GT3: 2023-07-13 | GU3: 2023-07-14 | GV3: 2023-07-15 | GW3: 2023-07-16 | GX3: 2023-07-17 | GY3: 2023-07-18 | GZ3: 2023-07-19 | HA3: 2023-07-20 | HB3: 2023-07-21 | HC3: 2023-07-22 | HD3: 2023-07-23 | HE3: 2023-07-24 | HF3: 2023-07-25 | HG3: 2023-07-26 | HH3: 2023-07-27 | HI3: 2023-07-28 | HJ3: 2023-07-29 | HK3: 2023-07-30 | HL3: 2023-07-31 | HM3: 2023-08-01 | HN3: 2023-08-02 | HO3: 2023-08-03 | HP3: 2023-08-04 | HQ3: 2023-08-05 | HR3: 2023-08-06 | HS3: 2023-08-07 | HT3: 2023-08-08 | HU3: 2023-08-09 | HV3: 2023-08-10 | HW3: 2023-08-11 | HX3: 2023-08-12 | HY3: 2023-08-13 | HZ3: 2023-08-14 | IA3: 2023-08-15 | IB3: 2023-08-16 | IC3: 2023-08-17 | ID3: 2023-08-18 | IE3: 2023-08-19 | IF3: 2023-08-20 | IG3: 2023-08-21 | IH3: 2023-08-22 | II3: 2023-08-23 | IJ3: 2023-08-24 | IK3: 2023-08-25 | IL3: 2023-08-26 | IM3: 2023-08-27 | IN3: =IM3+1 -> 2023-08-28 | IO3: 2023-08-29 | IP3: 2023-08-30 | IQ3: 2023-08-31 | IR3: 2023-09-01 | IS3: 2023-09-02 | IT3: 2023-09-03 | IU3: 2023-09-04 | IV3: 2023-09-05 | IW3: 2023-09-06 | IX3: 2023-09-07 | IY3: 2023-09-08 | IZ3: 2023-09-09 | JA3: 2023-09-10 | JB3: 2023-09-11 | JC3: 2023-09-12 | JD3: 2023-09-13 | JE3: 2023-09-14 | JF3: 2023-09-15 | JG3: 2023-09-16 | JH3: 2023-09-17 | JI3: 2023-09-18 | JJ3: 2023-09-19 | JK3: 2023-09-20 | JL3: 2023-09-21 | JM3: 2023-09-22 | JN3: 2023-09-23 | JO3: 2023-09-24 | JP3: 2023-09-25 | JQ3: =JO3+1 -> 2023-09-25 | JR3: =JQ3+1 -> 2023-09-26 | JS3: 2023-09-27 | JT3: 2023-09-28 | JU3: 2023-09-29 | JV3: 2023-09-30 | JW3: 2023-10-01 | JX3: 2023-10-02 | JY3: 2023-10-03 | JZ3: 2023-10-04 | KA3: 2023-10-05 | KB3: 2023-10-06 | KC3: 2023-10-07 | KD3: 2023-10-08 | KE3: 2023-10-09 | KF3: 2023-10-10 | KG3: 2023-10-11 | KH3: 2023-10-12 | KI3: 2023-10-13 | KJ3: 2023-10-14 | KK3: 2023-10-15 | KL3: 2023-10-16 | KM3: 2023-10-17 | KN3: 2023-10-18 | KO3: 2023-10-19 | KP3: 2023-10-20 | KQ3: 2023-10-21 | KR3: 2023-10-22 | KS3: 2023-10-23 | KT3: 2023-10-24 | KU3: 2023-10-25 | KV3: 2023-10-26 | KW3: 2023-10-27 | KX3: 2023-10-28 | KY3: 2023-10-29 | KZ3: 2023-10-30 | LA3: 2023-10-31 | LB3: 2023-11-01 | LC3: 2023-11-02 | LD3: 2023-11-03 | LE3: 2023-11-04 | LF3: 2023-11-05 | LG3: 2023-11-06 | LH3: 2023-11-07 | LI3: 2023-11-08 | LJ3: 2023-11-09 | LK3: 2023-11-10 | LL3: 2023-11-11 | LM3: 2023-11-12 | LN3: 2023-11-13 | LO3: 2023-11-14 | LP3: 2023-11-15 | LQ3: 2023-11-16 | LR3: 2023-11-17 | LS3: 2023-11-18 | LT3: 2023-11-19 | LU3: =LS3+1 -> 2023-11-19 | LV3: =LU3+1 -> 2023-11-20 | LW3: 2023-11-21 | LX3: 2023-11-22 | LY3: 2023-11-23 | LZ3: 2023-11-24 | MA3: 2023-11-25 | MB3: 2023-11-26 | MC3: 2023-11-27 | MD3: 2023-11-28 | ME3: 2023-11-29 | MF3: 2023-11-30 | MG3: 2023-12-01 | MH3: 2023-12-02 | MI3: 2023-12-03 | MJ3: 2023-12-04 | MK3: 2023-12-05 | ML3: 2023-12-06 | MM3: 2023-12-07 | MN3: 2023-12-08 | MO3: 2023-12-09 | MP3: 2023-12-10 | MQ3: =MO3+1 -> 2023-12-10 | MR3: =MQ3+1 -> 2023-12-11 | MS3: 2023-12-12 | MT3: 2023-12-13 | MU3: 2023-12-14 | MV3: 2023-12-15 | MW3: 2023-12-16 | MX3: 2023-12-17 | MY3: 2023-12-18 | MZ3: 2023-12-19 | NA3: 2023-12-20 | NB3: 2023-12-21 | NC3: 2023-12-22 | ND3: 2023-12-23 | NE3: =NC3+1 -> 2023-12-23 | NF3: =NE3+1 -> 2023-12-24 | NG3: 2023-12-25 | NH3: 2023-12-26 | NI3: 2023-12-27 | NJ3: 2023-12-28 | NK3: =NI3+1 -> 2023-12-28 | NL3: =NK3+1 -> 2023-12-29 | NM3: 2023-12-30 | NN3: 2023-12-31
A4: رقم الترتيب | B4: الاسم و اللقب | C4: الجنس | D4: المهنة | E4: العنوان | F4: الرمز | G4: تسلسل
A5: 1
A6: 2
A7: 3
A8: 4
A9: 5
A10: 6
A11: 7
A12: 8
A13: 9
A14: 10
A15: 11
A16: 12
A17: 13
A18: 14
A19: 15
A20: 16
A21: 17
A22: 18
A23: 19
A24: 20

Sheet ص
G1: الرقم | H1: 1 | I1: =H1+1 -> 2 | J1: =I1+1 -> 3 | K1: 4 | L1: 5 | M1: 6 | N1: 7 | O1: 8 | P1: 9 | Q1: 10 | R1: 11 | S1: 12 | T1: 13 | U1: 14 | V1: 15 | W1: 16 | X1: 17 | Y1: 18 | Z1: 19 | AA1: 20 | AB1: 21 | AC1: 22 | AD1: 23 | AE1: 24 | AF1: 25 | AG1: 26 | AH1: 27 | AI1: 28 | AJ1: 29 | AK1: 30 | AL1: 31 | AM1: 32 | AN1: 33 | AO1: 34 | AP1: 35 | AQ1: 36 | AR1: 37 | AS1: 38 | AT1: 39 | AU1: 40 | AV1: 41 | AW1: 42 | AX1: 43 | AY1: 44 | AZ1: 45 | BA1: 46 | BB1: 47 | BC1: 48 | BD1: 49 | BE1: 50 | BF1: 51 | BG1: 52 | BH1: 53 | BI1: 54 | BJ1: 55 | BK1: 56 | BL1: 57 | BM1: 58 | BN1: 59 | BO1: 60 | BP1: 61 | BQ1: 62 | BR1: 63 | BS1: 64 | BT1: 65 | BU1: 66 | BV1: =BU1+1 -> 67 | BW1: 68 | BX1: 69 | BY1: 70 | BZ1: 71 | CA1: 72 | CB1: 73 | CC1: 74 | CD1: 75 | CE1: 76 | CF1: 77 | CG1: 78 | CH1: 79 | CI1: 80 | CJ1: 81 | CK1: 82 | CL1: 83 | CM1: 84 | CN1: 85 | CO1: 86 | CP1: 87 | CQ1: 88 | CR1: 89 | CS1: 90 | CT1: 91 | CU1: 92 | CV1: 93 | CW1: 94 | CX1: 95 | CY1: 96 | CZ1: 97 | DA1: 98 | DB1: 99 | DC1: 100 | DD1: 101 | DE1: 102 | DF1: 103 | DG1: 104 | DH1: 105 | DI1: 106 | DJ1: 107 | DK1: 108 | DL1: 109 | DM1: 110 | DN1: 111 | DO1: 112 | DP1: 113 | DQ1: 114 | DR1: 115 | DS1: 116 | DT1: 117 | DU1: 118 | DV1: 119 | DW1: 120 | DX1: 121 | DY1: 122 | DZ1: 123 | EA1: 124 | EB1: 125 | EC1: 126 | ED1: 127 | EE1: =ED1+1 -> 128 | EF1: =EE1+1 -> 129 | EG1: 130 | EH1: 131 | EI1: 132 | EJ1: 133 | EK1: 134 | EL1: 135 | EM1: 136 | EN1: 137 | EO1: 138 | EP1: 139 | EQ1: 140 | ER1: 141 | ES1: 142 | ET1: 143 | EU1: 144 | EV1: 145 | EW1: 146 | EX1: 147 | EY1: 148 | EZ1: 149 | FA1: 150 | FB1: 151 | FC1: 152 | FD1: 153 | FE1: 154 | FF1: 155 | FG1: 156 | FH1: 157 | FI1: 158 | FJ1: 159 | FK1: 160 | FL1: 161 | FM1: 162 | FN1: 163 | FO1: 164 | FP1: 165 | FQ1: 166 | FR1: 167 | FS1: 168 | FT1: 169 | FU1: 170 | FV1: 171 | FW1: 172 | FX1: 173 | FY1: 174 | FZ1: 175 | GA1: =FY1+1 -> 175 | GB1: =GA1+1 -> 176 | GC1: 177 | GD1: 178 | GE1: 179 | GF1: 180 | GG1: 181 | GH1: 182 | GI1: 183 | GJ1: 184 | GK1: 185 | GL1: 186 | GM1: 187 | GN1: 188 | GO1: 189 | GP1: 190 | GQ1: 191 | GR1: 192 | GS1: 193 | GT1: 194 | GU1: 195 | GV1: 196 | GW1: 197 | GX1: 198 | GY1: 199 | GZ1: 200 | HA1: 201 | HB1: 202 | HC1: 203 | HD1: 204 | HE1: 205 | HF1: 206 | HG1: 207 | HH1: 208 | HI1: 209 | HJ1: 210 | HK1: 211 | HL1: 212 | HM1: 213 | HN1: 214 | HO1: 215 | HP1: 216 | HQ1: 217 | HR1: 218 | HS1: 219 | HT1: 220 | HU1: 221 | HV1: 222 | HW1: 223 | HX1: 224 | HY1: 225 | HZ1: 226 | IA1: 227 | IB1: 228 | IC1: 229 | ID1: 230 | IE1: 231 | IF1: 232 | IG1: 233 | IH1: 234 | II1: 235 | IJ1: 236 | IK1: 237 | IL1: 238 | IM1: 239 | IN1: =IM1+1 -> 240 | IO1: 241 | IP1: 242 | IQ1: 243 | IR1: 244 | IS1: 245 | IT1: 246 | IU1: 247 | IV1: 248 | IW1: 249 | IX1: 250 | IY1: 251 | IZ1: 252 | JA1: 253 | JB1: 254 | JC1: 255 | JD1: 256 | JE1: 257 | JF1: 258 | JG1: 259 | JH1: 260 | JI1: 261 | JJ1: 262 | JK1: 263 | JL1: 264 | JM1: 265 | JN1: 266 | JO1: 267 | JP1: 268 | JQ1: =JO1+1 -> 268 | JR1: =JQ1+1 -> 269 | JS1: 270 | JT1: 271 | JU1: 272 | JV1: 273 | JW1: 274 | JX1: 275 | JY1: 276 | JZ1: 277 | KA1: 278 | KB1: 279 | KC1: 280 | KD1: 281 | KE1: 282 | KF1: 283 | KG1: 284 | KH1: 285 | KI1: 286 | KJ1: 287 | KK1: 288 | KL1: 289 | KM1: 290 | KN1: 291 | KO1: 292 | KP1: 293 | KQ1: 294 | KR1: 295 | KS1: 296 | KT1: 297 | KU1: 298 | KV1: 299 | KW1: 300 | KX1: 301 | KY1: 302 | KZ1: 303 | LA1: 304 | LB1: 305 | LC1: 306 | LD1: 307 | LE1: 308 | LF1: 309 | LG1: 310 | LH1: 311 | LI1: 312 | LJ1: 313 | LK1: 314 | LL1: 315 | LM1: 316 | LN1: 317 | LO1: 318 | LP1: 319 | LQ1: 320 | LR1: 321 | LS1: 322 | LT1: 323 | LU1: =LS1+1 -> 323 | LV1: =LU1+1 -> 324 | LW1: 325 | LX1: 326 | LY1: 327 | LZ1: 328 | MA1: 329 | MB1: 330 | MC1: 331 | MD1: 332 | ME1: 333 | MF1: 334 | MG1: 335 | MH1: 336 | MI1: 337 | MJ1: 338 | MK1: 339 | ML1: 340 | MM1: 341 | MN1: 342 | MO1: 343 | MP1: 344 | MQ1: =MO1+1 -> 344 | MR1: =MQ1+1 -> 345 | MS1: 346 | MT1: 347 | MU1: 348 | MV1: 349 | MW1: 350 | MX1: 351 | MY1: 352 | MZ1: 353 | NA1: 354 | NB1: 355 | NC1: 356 | ND1: 357 | NE1: =NC1+1 -> 357 | NF1: =NE1+1 -> 358 | NG1: 359 | NH1: 360 | NI1: 361 | NJ1: 362 | NK1: =NI1+1 -> 362 | NL1: =NK1+1 -> 363 | NM1: 364 | NN1: 365
G2: اليوم | H2: =H3 -> 2023-01-01 | I2: =I3 -> 2023-01-02 | J2: =J3 -> 2023-01-03 | K2: 2023-01-04 | L2: 2023-01-05 | M2: 2023-01-06 | N2: 2023-01-07 | O2: 2023-01-08 | P2: 2023-01-09 | Q2: 2023-01-10 | R2: 2023-01-11 | S2: 2023-01-12 | T2: 2023-01-13 | U2: 2023-01-14 | V2: 2023-01-15 | W2: 2023-01-16 | X2: 2023-01-17 | Y2: 2023-01-18 | Z2: 2023-01-19 | AA2: 2023-01-20 | AB2: 2023-01-21 | AC2: 2023-01-22 | AD2: 2023-01-23 | AE2: 2023-01-24 | AF2: 2023-01-25 | AG2: 2023-01-26 | AH2: 2023-01-27 | AI2: 2023-01-28 | AJ2: 2023-01-29 | AK2: 2023-01-30 | AL2: 2023-01-31 | AM2: 2023-02-01 | AN2: 2023-02-02 | AO2: 2023-02-03 | AP2: 2023-02-04 | AQ2: 2023-02-05 | AR2: 2023-02-06 | AS2: 2023-02-07 | AT2: 2023-02-08 | AU2: 2023-02-09 | AV2: 2023-02-10 | AW2: 2023-02-11 | AX2: 2023-02-12 | AY2: 2023-02-13 | AZ2: 2023-02-14 | BA2: 2023-02-15 | BB2: 2023-02-16 | BC2: 2023-02-17 | BD2: 2023-02-18 | BE2: 2023-02-19 | BF2: 2023-02-20 | BG2: 2023-02-21 | BH2: 2023-02-22 | BI2: 2023-02-23 | BJ2: 2023-02-24 | BK2: 2023-02-25 | BL2: 2023-02-26 | BM2: 2023-02-27 | BN2: 2023-02-28 | BO2: 2023-03-01 | BP2: 2023-03-02 | BQ2: 2023-03-03 | BR2: 2023-03-04 | BS2: 2023-03-05 | BT2: 2023-03-06 | BU2: 2023-03-07 | BV2: =BV3 -> 2023-03-08 | BW2: 2023-03-09 | BX2: 2023-03-10 | BY2: 2023-03-11 | BZ2: 2023-03-12 | CA2: 2023-03-13 | CB2: 2023-03-14 | CC2: 2023-03-15 | CD2: 2023-03-16 | CE2: 2023-03-17 | CF2: 2023-03-18 | CG2: 2023-03-19 | CH2: 2023-03-20 | CI2: 2023-03-21 | CJ2: 2023-03-22 | CK2: 2023-03-23 | CL2: 2023-03-24 | CM2: 2023-03-25 | CN2: 2023-03-26 | CO2: 2023-03-27 | CP2: 2023-03-28 | CQ2: 2023-03-29 | CR2: 2023-03-30 | CS2: 2023-03-31 | CT2: 2023-04-01 | CU2: 2023-04-02 | CV2: 2023-04-03 | CW2: 2023-04-04 | CX2: 2023-04-05 | CY2: 2023-04-06 | CZ2: 2023-04-07 | DA2: 2023-04-08 | DB2: 2023-04-09 | DC2: 2023-04-10 | DD2: 2023-04-11 | DE2: 2023-04-12 | DF2: 2023-04-13 | DG2: 2023-04-14 | DH2: 2023-04-15 | DI2: 2023-04-16 | DJ2: 2023-04-17 | DK2: 2023-04-18 | DL2: 2023-04-19 | DM2: 2023-04-20 | DN2: 2023-04-21 | DO2: 2023-04-22 | DP2: 2023-04-23 | DQ2: 2023-04-24 | DR2: 2023-04-25 | DS2: 2023-04-26 | DT2: 2023-04-27 | DU2: 2023-04-28 | DV2: 2023-04-29 | DW2: 2023-04-30 | DX2: 2023-05-01 | DY2: 2023-05-02 | DZ2: 2023-05-03 | EA2: 2023-05-04 | EB2: 2023-05-05 | EC2: 2023-05-06 | ED2: 2023-05-07 | EE2: =EE3 -> 2023-05-08 | EF2: =EF3 -> 2023-05-09 | EG2: 2023-05-10 | EH2: 2023-05-11 | EI2: 2023-05-12 | EJ2: 2023-05-13 | EK2: 2023-05-14 | EL2: 2023-05-15 | EM2: 2023-05-16 | EN2: 2023-05-17 | EO2: 2023-05-18 | EP2: 2023-05-19 | EQ2: 2023-05-20 | ER2: 2023-05-21 | ES2: 2023-05-22 | ET2: 2023-05-23 | EU2: 2023-05-24 | EV2: 2023-05-25 | EW2: 2023-05-26 | EX2: 2023-05-27 | EY2: 2023-05-28 | EZ2: 2023-05-29 | FA2: 2023-05-30 | FB2: 2023-05-31 | FC2: 2023-06-01 | FD2: 2023-06-02 | FE2: 2023-06-03 | FF2: 2023-06-04 | FG2: 2023-06-05 | FH2: 2023-06-06 | FI2: 2023-06-07 | FJ2: 2023-06-08 | FK2: 2023-06-09 | FL2: 2023-06-10 | FM2: 2023-06-11 | FN2: 2023-06-12 | FO2: 2023-06-13 | FP2: 2023-06-14 | FQ2: 2023-06-15 | FR2: 2023-06-16 | FS2: 2023-06-17 | FT2: 2023-06-18 | FU2: 2023-06-19 | FV2: 2023-06-20 | FW2: 2023-06-21 | FX2: 2023-06-22 | FY2: 2023-06-23 | FZ2: 2023-06-24 | GA2: =GA3 -> 2023-06-24 | GB2: =GB3 -> 2023-06-25 | GC2: 2023-06-26 | GD2: 2023-06-27 | GE2: 2023-06-28 | GF2: 2023-06-29 | GG2: 2023-06-30 | GH2: 2023-07-01 | GI2: 2023-07-02 | GJ2: 2023-07-03 | GK2: 2023-07-04 | GL2: 2023-07-05 | GM2: 2023-07-06 | GN2: 2023-07-07 | GO2: 2023-07-08 | GP2: 2023-07-09 | GQ2: 2023-07-10 | GR2: 2023-07-11 | GS2: 2023-07-12 | GT2: 2023-07-13 | GU2: 2023-07-14 | GV2: 2023-07-15 | GW2: 2023-07-16 | GX2: 2023-07-17 | GY2: 2023-07-18 | GZ2: 2023-07-19 | HA2: 2023-07-20 | HB2: 2023-07-21 | HC2: 2023-07-22 | HD2: 2023-07-23 | HE2: 2023-07-24 | HF2: 2023-07-25 | HG2: 2023-07-26 | HH2: 2023-07-27 | HI2: 2023-07-28 | HJ2: 2023-07-29 | HK2: 2023-07-30 | HL2: 2023-07-31 | HM2: 2023-08-01 | HN2: 2023-08-02 | HO2: 2023-08-03 | HP2: 2023-08-04 | HQ2: 2023-08-05 | HR2: 2023-08-06 | HS2: 2023-08-07 | HT2: 2023-08-08 | HU2: 2023-08-09 | HV2: 2023-08-10 | HW2: 2023-08-11 | HX2: 2023-08-12 | HY2: 2023-08-13 | HZ2: 2023-08-14 | IA2: 2023-08-15 | IB2: 2023-08-16 | IC2: 2023-08-17 | ID2: 2023-08-18 | IE2: 2023-08-19 | IF2: 2023-08-20 | IG2: 2023-08-21 | IH2: 2023-08-22 | II2: 2023-08-23 | IJ2: 2023-08-24 | IK2: 2023-08-25 | IL2: 2023-08-26 | IM2: 2023-08-27 | IN2: =IN3 -> 2023-08-28 | IO2: 2023-08-29 | IP2: 2023-08-30 | IQ2: 2023-08-31 | IR2: 2023-09-01 | IS2: 2023-09-02 | IT2: 2023-09-03 | IU2: 2023-09-04 | IV2: 2023-09-05 | IW2: 2023-09-06 | IX2: 2023-09-07 | IY2: 2023-09-08 | IZ2: 2023-09-09 | JA2: 2023-09-10 | JB2: 2023-09-11 | JC2: 2023-09-12 | JD2: 2023-09-13 | JE2: 2023-09-14 | JF2: 2023-09-15 | JG2: 2023-09-16 | JH2: 2023-09-17 | JI2: 2023-09-18 | JJ2: 2023-09-19 | JK2: 2023-09-20 | JL2: 2023-09-21 | JM2: 2023-09-22 | JN2: 2023-09-23 | JO2: 2023-09-24 | JP2: 2023-09-25 | JQ2: =JQ3 -> 2023-09-25 | JR2: =JR3 -> 2023-09-26 | JS2: 2023-09-27 | JT2: 2023-09-28 | JU2: 2023-09-29 | JV2: 2023-09-30 | JW2: 2023-10-01 | JX2: 2023-10-02 | JY2: 2023-10-03 | JZ2: 2023-10-04 | KA2: 2023-10-05 | KB2: 2023-10-06 | KC2: 2023-10-07 | KD2: 2023-10-08 | KE2: 2023-10-09 | KF2: 2023-10-10 | KG2: 2023-10-11 | KH2: 2023-10-12 | KI2: 2023-10-13 | KJ2: 2023-10-14 | KK2: 2023-10-15 | KL2: 2023-10-16 | KM2: 2023-10-17 | KN2: 2023-10-18 | KO2: 2023-10-19 | KP2: 2023-10-20 | KQ2: 2023-10-21 | KR2: 2023-10-22 | KS2: 2023-10-23 | KT2: 2023-10-24 | KU2: 2023-10-25 | KV2: 2023-10-26 | KW2: 2023-10-27 | KX2: 2023-10-28 | KY2: 2023-10-29 | KZ2: 2023-10-30 | LA2: 2023-10-31 | LB2: 2023-11-01 | LC2: 2023-11-02 | LD2: 2023-11-03 | LE2: 2023-11-04 | LF2: 2023-11-05 | LG2: 2023-11-06 | LH2: 2023-11-07 | LI2: 2023-11-08 | LJ2: 2023-11-09 | LK2: 2023-11-10 | LL2: 2023-11-11 | LM2: 2023-11-12 | LN2: 2023-11-13 | LO2: 2023-11-14 | LP2: 2023-11-15 | LQ2: 2023-11-16 | LR2: 2023-11-17 | LS2: 2023-11-18 | LT2: 2023-11-19 | LU2: =LU3 -> 2023-11-19 | LV2: =LV3 -> 2023-11-20 | LW2: 2023-11-21 | LX2: 2023-11-22 | LY2: 2023-11-23 | LZ2: 2023-11-24 | MA2: 2023-11-25 | MB2: 2023-11-26 | MC2: 2023-11-27 | MD2: 2023-11-28 | ME2: 2023-11-29 | MF2: 2023-11-30 | MG2: 2023-12-01 | MH2: 2023-12-02 | MI2: 2023-12-03 | MJ2: 2023-12-04 | MK2: 2023-12-05 | ML2: 2023-12-06 | MM2: 2023-12-07 | MN2: 2023-12-08 | MO2: 2023-12-09 | MP2: 2023-12-10 | MQ2: =MQ3 -> 2023-12-10 | MR2: =MR3 -> 2023-12-11 | MS2: 2023-12-12 | MT2: 2023-12-13 | MU2: 2023-12-14 | MV2: 2023-12-15 | MW2: 2023-12-16 | MX2: 2023-12-17 | MY2: 2023-12-18 | MZ2: 2023-12-19 | NA2: 2023-12-20 | NB2: 2023-12-21 | NC2: 2023-12-22 | ND2: 2023-12-23 | NE2: =NE3 -> 2023-12-23 | NF2: =NF3 -> 2023-12-24 | NG2: 2023-12-25 | NH2: 2023-12-26 | NI2: 2023-12-27 | NJ2: 2023-12-28 | NK2: =NK3 -> 2023-12-28 | NL2: =NL3 -> 2023-12-29 | NM2: 2023-12-30 | NN2: 2023-12-31
G3: التاريخ | H3: ='بيانات أولية'!C1 -> 2023-01-01 | I3: =H3+1 -> 2023-01-02 | J3: =I3+1 -> 2023-01-03 | K3: 2023-01-04 | L3: 2023-01-05 | M3: 2023-01-06 | N3: 2023-01-07 | O3: 2023-01-08 | P3: 2023-01-09 | Q3: 2023-01-10 | R3: 2023-01-11 | S3: 2023-01-12 | T3: 2023-01-13 | U3: 2023-01-14 | V3: 2023-01-15 | W3: 2023-01-16 | X3: 2023-01-17 | Y3: 2023-01-18 | Z3: 2023-01-19 | AA3: 2023-01-20 | AB3: 2023-01-21 | AC3: 2023-01-22 | AD3: 2023-01-23 | AE3: 2023-01-24 | AF3: 2023-01-25 | AG3: 2023-01-26 | AH3: 2023-01-27 | AI3: 2023-01-28 | AJ3: 2023-01-29 | AK3: 2023-01-30 | AL3: 2023-01-31 | AM3: 2023-02-01 | AN3: 2023-02-02 | AO3: 2023-02-03 | AP3: 2023-02-04 | AQ3: 2023-02-05 | AR3: 2023-02-06 | AS3: 2023-02-07 | AT3: 2023-02-08 | AU3: 2023-02-09 | AV3: 2023-02-10 | AW3: 2023-02-11 | AX3: 2023-02-12 | AY3: 2023-02-13 | AZ3: 2023-02-14 | BA3: 2023-02-15 | BB3: 2023-02-16 | BC3: 2023-02-17 | BD3: 2023-02-18 | BE3: 2023-02-19 | BF3: 2023-02-20 | BG3: 2023-02-21 | BH3: 2023-02-22 | BI3: 2023-02-23 | BJ3: 2023-02-24 | BK3: 2023-02-25 | BL3: 2023-02-26 | BM3: 2023-02-27 | BN3: 2023-02-28 | BO3: 2023-03-01 | BP3: 2023-03-02 | BQ3: 2023-03-03 | BR3: 2023-03-04 | BS3: 2023-03-05 | BT3: 2023-03-06 | BU3: 2023-03-07 | BV3: =BU3+1 -> 2023-03-08 | BW3: 2023-03-09 | BX3: 2023-03-10 | BY3: 2023-03-11 | BZ3: 2023-03-12 | CA3: 2023-03-13 | CB3: 2023-03-14 | CC3: 2023-03-15 | CD3: 2023-03-16 | CE3: 2023-03-17 | CF3: 2023-03-18 | CG3: 2023-03-19 | CH3: 2023-03-20 | CI3: 2023-03-21 | CJ3: 2023-03-22 | CK3: 2023-03-23 | CL3: 2023-03-24 | CM3: 2023-03-25 | CN3: 2023-03-26 | CO3: 2023-03-27 | CP3: 2023-03-28 | CQ3: 2023-03-29 | CR3: 2023-03-30 | CS3: 2023-03-31 | CT3: 2023-04-01 | CU3: 2023-04-02 | CV3: 2023-04-03 | CW3: 2023-04-04 | CX3: 2023-04-05 | CY3: 2023-04-06 | CZ3: 2023-04-07 | DA3: 2023-04-08 | DB3: 2023-04-09 | DC3: 2023-04-10 | DD3: 2023-04-11 | DE3: 2023-04-12 | DF3: 2023-04-13 | DG3: 2023-04-14 | DH3: 2023-04-15 | DI3: 2023-04-16 | DJ3: 2023-04-17 | DK3: 2023-04-18 | DL3: 2023-04-19 | DM3: 2023-04-20 | DN3: 2023-04-21 | DO3: 2023-04-22 | DP3: 2023-04-23 | DQ3: 2023-04-24 | DR3: 2023-04-25 | DS3: 2023-04-26 | DT3: 2023-04-27 | DU3: 2023-04-28 | DV3: 2023-04-29 | DW3: 2023-04-30 | DX3: 2023-05-01 | DY3: 2023-05-02 | DZ3: 2023-05-03 | EA3: 2023-05-04 | EB3: 2023-05-05 | EC3: 2023-05-06 | ED3: 2023-05-07 | EE3: =ED3+1 -> 2023-05-08 | EF3: =EE3+1 -> 2023-05-09 | EG3: 2023-05-10 | EH3: 2023-05-11 | EI3: 2023-05-12 | EJ3: 2023-05-13 | EK3: 2023-05-14 | EL3: 2023-05-15 | EM3: 2023-05-16 | EN3: 2023-05-17 | EO3: 2023-05-18 | EP3: 2023-05-19 | EQ3: 2023-05-20 | ER3: 2023-05-21 | ES3: 2023-05-22 | ET3: 2023-05-23 | EU3: 2023-05-24 | EV3: 2023-05-25 | EW3: 2023-05-26 | EX3: 2023-05-27 | EY3: 2023-05-28 | EZ3: 2023-05-29 | FA3: 2023-05-30 | FB3: 2023-05-31 | FC3: 2023-06-01 | FD3: 2023-06-02 | FE3: 2023-06-03 | FF3: 2023-06-04 | FG3: 2023-06-05 | FH3: 2023-06-06 | FI3: 2023-06-07 | FJ3: 2023-06-08 | FK3: 2023-06-09 | FL3: 2023-06-10 | FM3: 2023-06-11 | FN3: 2023-06-12 | FO3: 2023-06-13 | FP3: 2023-06-14 | FQ3: 2023-06-15 | FR3: 2023-06-16 | FS3: 2023-06-17 | FT3: 2023-06-18 | FU3: 2023-06-19 | FV3: 2023-06-20 | FW3: 2023-06-21 | FX3: 2023-06-22 | FY3: 2023-06-23 | FZ3: 2023-06-24 | GA3: =FY3+1 -> 2023-06-24 | GB3: =GA3+1 -> 2023-06-25 | GC3: 2023-06-26 | GD3: 2023-06-27 | GE3: 2023-06-28 | GF3: 2023-06-29 | GG3: 2023-06-30 | GH3: 2023-07-01 | GI3: 2023-07-02 | GJ3: 2023-07-03 | GK3: 2023-07-04 | GL3: 2023-07-05 | GM3: 2023-07-06 | GN3: 2023-07-07 | GO3: 2023-07-08 | GP3: 2023-07-09 | GQ3: 2023-07-10 | GR3: 2023-07-11 | GS3: 2023-07-12 | GT3: 2023-07-13 | GU3: 2023-07-14 | GV3: 2023-07-15 | GW3: 2023-07-16 | GX3: 2023-07-17 | GY3: 2023-07-18 | GZ3: 2023-07-19 | HA3: 2023-07-20 | HB3: 2023-07-21 | HC3: 2023-07-22 | HD3: 2023-07-23 | HE3: 2023-07-24 | HF3: 2023-07-25 | HG3: 2023-07-26 | HH3: 2023-07-27 | HI3: 2023-07-28 | HJ3: 2023-07-29 | HK3: 2023-07-30 | HL3: 2023-07-31 | HM3: 2023-08-01 | HN3: 2023-08-02 | HO3: 2023-08-03 | HP3: 2023-08-04 | HQ3: 2023-08-05 | HR3: 2023-08-06 | HS3: 2023-08-07 | HT3: 2023-08-08 | HU3: 2023-08-09 | HV3: 2023-08-10 | HW3: 2023-08-11 | HX3: 2023-08-12 | HY3: 2023-08-13 | HZ3: 2023-08-14 | IA3: 2023-08-15 | IB3: 2023-08-16 | IC3: 2023-08-17 | ID3: 2023-08-18 | IE3: 2023-08-19 | IF3: 2023-08-20 | IG3: 2023-08-21 | IH3: 2023-08-22 | II3: 2023-08-23 | IJ3: 2023-08-24 | IK3: 2023-08-25 | IL3: 2023-08-26 | IM3: 2023-08-27 | IN3: =IM3+1 -> 2023-08-28 | IO3: 2023-08-29 | IP3: 2023-08-30 | IQ3: 2023-08-31 | IR3: 2023-09-01 | IS3: 2023-09-02 | IT3: 2023-09-03 | IU3: 2023-09-04 | IV3: 2023-09-05 | IW3: 2023-09-06 | IX3: 2023-09-07 | IY3: 2023-09-08 | IZ3: 2023-09-09 | JA3: 2023-09-10 | JB3: 2023-09-11 | JC3: 2023-09-12 | JD3: 2023-09-13 | JE3: 2023-09-14 | JF3: 2023-09-15 | JG3: 2023-09-16 | JH3: 2023-09-17 | JI3: 2023-09-18 | JJ3: 2023-09-19 | JK3: 2023-09-20 | JL3: 2023-09-21 | JM3: 2023-09-22 | JN3: 2023-09-23 | JO3: 2023-09-24 | JP3: 2023-09-25 | JQ3: =JO3+1 -> 2023-09-25 | JR3: =JQ3+1 -> 2023-09-26 | JS3: 2023-09-27 | JT3: 2023-09-28 | JU3: 2023-09-29 | JV3: 2023-09-30 | JW3: 2023-10-01 | JX3: 2023-10-02 | JY3: 2023-10-03 | JZ3: 2023-10-04 | KA3: 2023-10-05 | KB3: 2023-10-06 | KC3: 2023-10-07 | KD3: 2023-10-08 | KE3: 2023-10-09 | KF3: 2023-10-10 | KG3: 2023-10-11 | KH3: 2023-10-12 | KI3: 2023-10-13 | KJ3: 2023-10-14 | KK3: 2023-10-15 | KL3: 2023-10-16 | KM3: 2023-10-17 | KN3: 2023-10-18 | KO3: 2023-10-19 | KP3: 2023-10-20 | KQ3: 2023-10-21 | KR3: 2023-10-22 | KS3: 2023-10-23 | KT3: 2023-10-24 | KU3: 2023-10-25 | KV3: 2023-10-26 | KW3: 2023-10-27 | KX3: 2023-10-28 | KY3: 2023-10-29 | KZ3: 2023-10-30 | LA3: 2023-10-31 | LB3: 2023-11-01 | LC3: 2023-11-02 | LD3: 2023-11-03 | LE3: 2023-11-04 | LF3: 2023-11-05 | LG3: 2023-11-06 | LH3: 2023-11-07 | LI3: 2023-11-08 | LJ3: 2023-11-09 | LK3: 2023-11-10 | LL3: 2023-11-11 | LM3: 2023-11-12 | LN3: 2023-11-13 | LO3: 2023-11-14 | LP3: 2023-11-15 | LQ3: 2023-11-16 | LR3: 2023-11-17 | LS3: 2023-11-18 | LT3: 2023-11-19 | LU3: =LS3+1 -> 2023-11-19 | LV3: =LU3+1 -> 2023-11-20 | LW3: 2023-11-21 | LX3: 2023-11-22 | LY3: 2023-11-23 | LZ3: 2023-11-24 | MA3: 2023-11-25 | MB3: 2023-11-26 | MC3: 2023-11-27 | MD3: 2023-11-28 | ME3: 2023-11-29 | MF3: 2023-11-30 | MG3: 2023-12-01 | MH3: 2023-12-02 | MI3: 2023-12-03 | MJ3: 2023-12-04 | MK3: 2023-12-05 | ML3: 2023-12-06 | MM3: 2023-12-07 | MN3: 2023-12-08 | MO3: 2023-12-09 | MP3: 2023-12-10 | MQ3: =MO3+1 -> 2023-12-10 | MR3: =MQ3+1 -> 2023-12-11 | MS3: 2023-12-12 | MT3: 2023-12-13 | MU3: 2023-12-14 | MV3: 2023-12-15 | MW3: 2023-12-16 | MX3: 2023-12-17 | MY3: 2023-12-18 | MZ3: 2023-12-19 | NA3: 2023-12-20 | NB3: 2023-12-21 | NC3: 2023-12-22 | ND3: 2023-12-23 | NE3: =NC3+1 -> 2023-12-23 | NF3: =NE3+1 -> 2023-12-24 | NG3: 2023-12-25 | NH3: 2023-12-26 | NI3: 2023-12-27 | NJ3: 2023-12-28 | NK3: =NI3+1 -> 2023-12-28 | NL3: =NK3+1 -> 2023-12-29 | NM3: 2023-12-30 | NN3: 2023-12-31
A4: رقم الترتيب | B4: الاسم و اللقب | C4: الجنس | D4: المهنة | E4: العنوان | F4: الرمز | G4: تسلسل
A5: 1
A6: 2
A7: 3
A8: 4
A9: 5
A10: 6
A11: 7
A12: 8
A13: 9
A14: 10
A15: 11
A16: 12
A17: 13
A18: 14
A19: 15
A20: 16
A21: 17
A22: 18
A23: 19
A24: 20

Sheet بحث بالتاريخ
E2: من : | F2: 00\00\2000 | H2: إلى : | I2: 00\00\2000
A3: الرقم | B3: الاسم و اللقب | C3: الجنس | D3: المهنة | E3: العنوان | F3: الرمز | G3: غير مبرر | H3: مبرر | I3: غياب يوم | J3: ص | K3: ض
A4: 1
A5: 2
